{"text_format":"1","workbook":"xlsx","n_sheets":7,"sheets":["①表紙  ","②納税カレンダー","③記入様式","④印刷後の手引き","記入例","取扱金融機関","納税課用・修正シート"],"not_rendered":{"charts":0,"images":9,"macros":1,"external_links":0,"defined_names":29,"comments":0,"pivot_tables":0},"unopened":[],"bounds":{"document_bytes":16777216,"sheet_cells":100000,"rows_first":2000,"rows_last":500,"rows_between":2000,"halvings":0,"cell_chars":16384,"cell_head_chars":4096},"cells_cut":0,"cells_raw":0,"read":"whole","date_system":"1900"}

{"sheet":"①表紙  ","index":0,"n_rows":116,"n_cols":63,"rows_kept":116,"cut":false,"hidden":false,"merged":[[55,46,57,61],[49,3,54,32],[49,46,51,61],[49,62,51,66],[52,46,54,61],[52,62,54,66],[43,46,45,61],[43,62,45,66],[44,2,47,12],[46,46,48,61],[46,62,48,66],[58,62,60,66],[70,62,72,66],[101,2,111,29],[102,35,111,66],[115,2,145,33],[115,35,145,66],[77,2,80,12],[0,0,2,68],[3,0,3,68],[4,0,12,68],[73,62,75,66],[40,62,42,66],[21,0,21,68],[24,1,30,67],[32,2,35,12],[32,24,35,34],[32,46,35,56],[37,3,42,22],[37,25,39,44],[37,46,39,61],[37,62,39,66],[40,25,42,44],[55,62,57,66],[40,46,42,61],[79,72,82,77],[82,2,92,33],[82,35,100,66],[94,2,99,33],[61,3,75,44],[61,46,63,61],[61,62,63,66],[64,46,66,61],[64,62,66,66],[67,46,69,61],[67,62,69,66],[70,46,72,61],[73,46,75,61],[56,5,59,43],[58,46,60,61]]}
["たつの市市税等口座振替依頼書兼解約届書"]
[]
[]
["本書をご確認のうえ、ページ下部の矢印「→」から、次のページにお進みください。"]
[]
[]
[]
[]
[]
[]
[]
[]
[]
[]
[]
[]
[]
[]
[]
[]
[]
[]
[]
[]
[null,"たつの市市税等預金口座振替依頼書兼解約届書"]
[]
[]
[]
[]
[]
[]
[]
[null,null,"申込期限",null,null,null,null,null,null,null,null,null,null,null,null,null,null,null,null,null,null,null,null,null,"申込窓口",null,null,null,null,null,null,null,null,null,null,null,null,null,null,null,null,null,null,null,null,null,"取扱金融機関"]
[]
[]
[]
[]
[null,null,null,"　各納期限日の１か月前までに\nお申し込みください。",null,null,null,null,null,null,null,null,null,null,null,null,null,null,null,null,null,null,null,null,null,"取扱金融機関",null,null,null,null,null,null,null,null,null,null,null,null,null,null,null,null,null,null,null,null,"金融機関名",null,null,null,null,null,null,null,null,null,null,null,null,null,null,null,"コード"]
[]
[]
[null,null,null,null,null,null,null,null,null,null,null,null,null,null,null,null,null,null,null,null,null,null,null,null,null,"たつの市納税課・各総合支所地域振興課",null,null,null,null,null,null,null,null,null,null,null,null,null,null,null,null,null,null,null,null," 三井住友銀行",null,null,null,null,null,null,null,null,null,null,null,null,null,null,null,"0009"]
[]
[]
[null,null,null,null,null,null,null,null,null,null,null,null,null,null,null,null,null,null,null,null,null,null,null,null,null,null,null,null,null,null,null,null,null,null,null,null,null,null,null,null,null,null,null,null,null,null," みなと銀行",null,null,null,null,null,null,null,null,null,null,null,null,null,null,null,"0562"]
[null,null,"記入方法"]
[]
[null,null,null,null,null,null,null,null,null,null,null,null,null,null,null,null,null,null,null,null,null,null,null,null,null,null,null,null,null,null,null,null,null,null,null,null,null,null,null,null,null,null,null,null,null,null," トマト銀行",null,null,null,null,null,null,null,null,null,null,null,null,null,null,null,"0566"]
[]
[]
[null,null,null,"　裏面の記入例 又は たつの市ホームページを\n参考に記入してください。　　　たつの市ホームページ→",null,null,null,null,null,null,null,null,null,null,null,null,null,null,null,null,null,null,null,null,null,null,null,null,null,null,null,null,null,null,null,null,null,null,null,null,null,null,null,null,null,null," 姫路信用金庫",null,null,null,null,null,null,null,null,null,null,null,null,null,null,null,"1685"]
[]
[]
[null,null,null,null,null,null,null,null,null,null,null,null,null,null,null,null,null,null,null,null,null,null,null,null,null,null,null,null,null,null,null,null,null,null,null,null,null,null,null,null,null,null,null,null,null,null," 播州信用金庫",null,null,null,null,null,null,null,null,null,null,null,null,null,null,null,"1686"]
[]
[]
[null,null,null,null,null,null,null,null,null,null,null,null,null,null,null,null,null,null,null,null,null,null,null,null,null,null,null,null,null,null,null,null,null,null,null,null,null,null,null,null,null,null,null,null,null,null," 兵庫信用金庫",null,null,null,null,null,null,null,null,null,null,null,null,null,null,null,"1687"]
[null,null,null,null,null,"よく間違えます「固定資産税の納税義務者」"]
[]
[null,null,null,null,null,null,null,null,null,null,null,null,null,null,null,null,null,null,null,null,null,null,null,null,null,null,null,null,null,null,null,null,null,null,null,null,null,null,null,null,null,null,null,null,null,null," 西兵庫信用金庫",null,null,null,null,null,null,null,null,null,null,null,null,null,null,null,"1694"]
[]
[]
[null,null,null,"　売買や相続、共有者の変更等による登記が完了したときは、これまでの口座振替の情報は、次年度に引き継がれません。同じ口座による口座振替でも、新たに手続きが必要です。\n　相続が発生しても登記が未了のときは、納税義務者名は亡くなられた方の氏名とし、新たな口座をご登録ください。",null,null,null,null,null,null,null,null,null,null,null,null,null,null,null,null,null,null,null,null,null,null,null,null,null,null,null,null,null,null,null,null,null,null,null,null,null,null,null,null,null,null," 兵庫県医療信用組合",null,null,null,null,null,null,null,null,null,null,null,null,null,null,null,"2605"]
[]
[]
[null,null,null,null,null,null,null,null,null,null,null,null,null,null,null,null,null,null,null,null,null,null,null,null,null,null,null,null,null,null,null,null,null,null,null,null,null,null,null,null,null,null,null,null,null,null," 兵庫県信用組合",null,null,null,null,null,null,null,null,null,null,null,null,null,null,null,"2606"]
[]
[]
[null,null,null,null,null,null,null,null,null,null,null,null,null,null,null,null,null,null,null,null,null,null,null,null,null,null,null,null,null,null,null,null,null,null,null,null,null,null,null,null,null,null,null,null,null,null," 兵庫西農業協同組合",null,null,null,null,null,null,null,null,null,null,null,null,null,null,null,"7288"]
[]
[]
[null,null,null,null,null,null,null,null,null,null,null,null,null,null,null,null,null,null,null,null,null,null,null,null,null,null,null,null,null,null,null,null,null,null,null,null,null,null,null,null,null,null,null,null,null,null," なぎさ信用漁業協同組合連合会",null,null,null,null,null,null,null,null,null,null,null,null,null,null,null,"9477"]
[]
[]
[]
[]
[]
[]
[null,null,"ご確認ください"]
[]
[]
[]
[]
[null,null,"〇 申込みには口座のお届け印が必要です。印鑑が不明の\n　ときは、金融機関の窓口でご確認いただけます。\n　 口座情報に記載誤りや印鑑相違がある場合は、訂正の\n　ために来庁をお願いすることがあります。",null,null,null,null,null,null,null,null,null,null,null,null,null,null,null,null,null,null,null,null,null,null,null,null,null,null,null,null,null,null,null,null,"〇 一度手続きをすると翌年度以降も継続して口座振替\n　されます。\n   ただし、市の判断で口座振替の取扱いを廃止するこ\n　とがあります。\n　　・口座名義人が亡くなられたとき\n　  ・預金残高不足等により連続して口座振替\n　　　ができないとき"]
[]
[]
[]
[]
[]
[]
[]
[]
[]
[]
[]
[null,null,"〇 印鑑レス口座を利用した申込みは、必ず金融機関窓口\n　で行ってください。"]
[]
[]
[]
[]
[]
[]
[null,null,"〇 継続検査窓口での納税証明書の提示が\n　原則不要になったことにより、車検を\n　必要とする車両の継続検査用納税証明\n　書は送付しません。　　詳しくはこちら→"]
[null,null,null,null,null,null,null,null,null,null,null,null,null,null,null,null,null,null,null,null,null,null,null,null,null,null,null,null,null,null,null,null,null,null,null,"〇 口座振替済通知書は送付しません。\n   口座振替(自動払込)の結果については、預貯金通帳\n  で確認してください。"]
[]
[]
[]
[]
[]
[]
[]
[]
[]
[]
[]
[]
[null,null,"\n",null,null,null,null,null,null,null,null,null,null,null,null,null,null,null,null,null,null,null,null,null,null,null,null,null,null,null,null,null,null,null,null,"\n"]

{"sheet":"②納税カレンダー","index":1,"n_rows":27,"n_cols":18,"rows_kept":27,"cut":false,"hidden":false,"merged":[[5,9,6,9],[5,10,6,11],[5,12,6,13],[5,14,6,15],[5,16,6,17],[19,0,21,7],[5,4,6,4],[5,5,6,5],[2,6,2,7],[0,0,0,7],[5,6,5,7],[3,0,3,7],[5,1,6,1],[5,2,6,2],[5,3,6,3],[1,0,1,7]]}
[{"$f":"\"令和\"&DBCS(納税課用・修正シート!D4&\"年度たつの市納税カレンダー\")","v":"令和６年度たつの市納税カレンダー"}]
["申込受付締切をご確認のうえ、矢印「→」から、次のページにお進みください。"]
[null,null,null,null,null,null,{"$f":"TODAY()","v":"2024-03-12"}]
[]
[null,null,null,null,null,null,null,null,null,"期ごとの一覧"]
[null,"納  期  限\n(口座振替日)","市民税・県民税\n・森林環境税\n(普通徴収分)","固定資産税\n都市計画税","軽自動車税\n（種別割）","国民健康保険税\n（普通徴収分）","申込受付締切",null,null,null,"市・県民税\n(普通徴収分)",null,"固定資産税\n都市計画税",null,"軽自動車税",null,"国民健康保険税\n（普通徴収分）"]
[null,null,null,null,null,null,"新規・変更","解約"]
["４月",{"$f":"納税課用・修正シート!I6","v":"2024-04-30"},{"$f":"DBCS(IF(納税課用・修正シート!E6=\"\",\"\",納税課用・修正シート!E6))","v":""},{"$f":"DBCS(IF(納税課用・修正シート!F6=\"\",\"\",納税課用・修正シート!F6))","v":""},{"$f":"DBCS(IF(納税課用・修正シート!G6=\"\",\"\",納税課用・修正シート!G6))","v":"全期"},{"$f":"DBCS(IF(納税課用・修正シート!H6=\"\",\"\",納税課用・修正シート!H6))","v":""},{"$f":"IF(納税課用・修正シート!J6>=$G$3,納税課用・修正シート!J6,③記入様式!$AR$74)","v":"2024-03-29"},{"$f":"IF(納税課用・修正シート!K6>=$G$3,納税課用・修正シート!K6,③記入様式!$AR$74)","v":"2024-04-17"},null,"期","新規・変更","解約・廃止","新規・変更","解約・廃止","新規・変更","解約・廃止","新規・変更","解約・廃止"]
["５月",{"$f":"納税課用・修正シート!I7","v":"2024-05-31"},{"$f":"DBCS(IF(納税課用・修正シート!E7=\"\",\"\",納税課用・修正シート!E7))","v":""},{"$f":"DBCS(IF(納税課用・修正シート!F7=\"\",\"\",納税課用・修正シート!F7))","v":"全期\n（第１期）"},{"$f":"DBCS(IF(納税課用・修正シート!G7=\"\",\"\",納税課用・修正シート!G7))","v":""},{"$f":"DBCS(IF(納税課用・修正シート!H7=\"\",\"\",納税課用・修正シート!H7))","v":""},{"$f":"IF(納税課用・修正シート!J7>=$G$3,納税課用・修正シート!J7,③記入様式!$AR$74)","v":"2024-04-30"},{"$f":"IF(納税課用・修正シート!K7>=$G$3,納税課用・修正シート!K7,③記入様式!$AR$74)","v":"2024-05-21"},null,"第１期",{"$f":"VLOOKUP($K$17,$C$8:$H$18,5,FALSE)","v":"2024-05-31"},{"$f":"VLOOKUP($K$17,$C$8:$H$18,6,FALSE)","v":"2024-06-19"},{"$f":"VLOOKUP($K$17,$D$8:$H$18,4,FALSE)","v":"2024-04-30"},{"$f":"VLOOKUP($K$17,$D$8:$H$18,5,FALSE)","v":"2024-05-21"},{"$f":"VLOOKUP($L$17,$E$8:$H$18,3,FALSE)","v":"2024-03-29"},{"$f":"VLOOKUP($L$17,$E$8:$H$18,4,FALSE)","v":"2024-04-17"},{"$f":"VLOOKUP($K$17,$F$8:$H$18,2,FALSE)","v":"2024-06-28"},{"$f":"VLOOKUP($K$17,$F$8:$H$18,3,FALSE)","v":"2024-07-19"}]
["６月",{"$f":"納税課用・修正シート!I8","v":"2024-07-01"},{"$f":"DBCS(IF(納税課用・修正シート!E8=\"\",\"\",納税課用・修正シート!E8))","v":"全期\n（第１期）"},{"$f":"DBCS(IF(納税課用・修正シート!F8=\"\",\"\",納税課用・修正シート!F8))","v":""},{"$f":"DBCS(IF(納税課用・修正シート!G8=\"\",\"\",納税課用・修正シート!G8))","v":""},{"$f":"DBCS(IF(納税課用・修正シート!H8=\"\",\"\",納税課用・修正シート!H8))","v":""},{"$f":"IF(納税課用・修正シート!J8>=$G$3,納税課用・修正シート!J8,③記入様式!$AR$74)","v":"2024-05-31"},{"$f":"IF(納税課用・修正シート!K8>=$G$3,納税課用・修正シート!K8,③記入様式!$AR$74)","v":"2024-06-19"},null,"第２期",{"$f":"VLOOKUP(J10,$C$8:$H$18,5,FALSE)","v":"2024-07-31"},{"$f":"VLOOKUP(J10,$C$8:$H$18,6,FALSE)","v":"2024-08-21"},{"$f":"VLOOKUP(J10,$D$8:$H$18,4,FALSE)","v":"2024-06-28"},{"$f":"VLOOKUP(J10,$D$8:$H$18,5,FALSE)","v":"2024-07-19"},null,null,{"$f":"VLOOKUP(J10,$F$8:$H$18,2,FALSE)","v":"2024-07-31"},{"$f":"VLOOKUP(J10,$F$8:$H$18,3,FALSE)","v":"2024-08-21"}]
["７月",{"$f":"納税課用・修正シート!I9","v":"2024-07-31"},{"$f":"DBCS(IF(納税課用・修正シート!E9=\"\",\"\",納税課用・修正シート!E9))","v":""},{"$f":"DBCS(IF(納税課用・修正シート!F9=\"\",\"\",納税課用・修正シート!F9))","v":"第２期"},{"$f":"DBCS(IF(納税課用・修正シート!G9=\"\",\"\",納税課用・修正シート!G9))","v":""},{"$f":"DBCS(IF(納税課用・修正シート!H9=\"\",\"\",納税課用・修正シート!H9))","v":"全期\n（第１期）"},{"$f":"IF(納税課用・修正シート!J9>=$G$3,納税課用・修正シート!J9,③記入様式!$AR$74)","v":"2024-06-28"},{"$f":"IF(納税課用・修正シート!K9>=$G$3,納税課用・修正シート!K9,③記入様式!$AR$74)","v":"2024-07-19"},null,"第３期",{"$f":"VLOOKUP(J11,$C$8:$H$18,5,FALSE)","v":"2024-09-30"},{"$f":"VLOOKUP(J11,$C$8:$H$18,6,FALSE)","v":"2024-10-21"},{"$f":"VLOOKUP(J11,$D$8:$H$18,4,FALSE)","v":"2024-11-25"},{"$f":"VLOOKUP(J11,$D$8:$H$18,5,FALSE)","v":"2024-12-13"},null,null,{"$f":"VLOOKUP(J11,$F$8:$H$18,2,FALSE)","v":"2024-08-30"},{"$f":"VLOOKUP(J11,$F$8:$H$18,3,FALSE)","v":"2024-09-17"}]
["８月",{"$f":"納税課用・修正シート!I10","v":"2024-09-02"},{"$f":"DBCS(IF(納税課用・修正シート!E10=\"\",\"\",納税課用・修正シート!E10))","v":"第２期"},{"$f":"DBCS(IF(納税課用・修正シート!F10=\"\",\"\",納税課用・修正シート!F10))","v":""},{"$f":"DBCS(IF(納税課用・修正シート!G10=\"\",\"\",納税課用・修正シート!G10))","v":""},{"$f":"DBCS(IF(納税課用・修正シート!H10=\"\",\"\",納税課用・修正シート!H10))","v":"第２期"},{"$f":"IF(納税課用・修正シート!J10>=$G$3,納税課用・修正シート!J10,③記入様式!$AR$74)","v":"2024-07-31"},{"$f":"IF(納税課用・修正シート!K10>=$G$3,納税課用・修正シート!K10,③記入様式!$AR$74)","v":"2024-08-21"},null,"第４期","2024-12-20","2025-01-21",{"$f":"VLOOKUP(J12,$D$8:$H$18,4,FALSE)","v":"2025-01-31"},{"$f":"VLOOKUP(J12,$D$8:$H$18,5,FALSE)","v":"2025-02-17"},null,null,"2024-09-30","2024-10-21"]
["９月",{"$f":"納税課用・修正シート!I11","v":"2024-09-30"},{"$f":"DBCS(IF(納税課用・修正シート!E11=\"\",\"\",納税課用・修正シート!E11))","v":""},{"$f":"DBCS(IF(納税課用・修正シート!F11=\"\",\"\",納税課用・修正シート!F11))","v":""},{"$f":"DBCS(IF(納税課用・修正シート!G11=\"\",\"\",納税課用・修正シート!G11))","v":""},{"$f":"DBCS(IF(納税課用・修正シート!H11=\"\",\"\",納税課用・修正シート!H11))","v":"第３期"},{"$f":"IF(納税課用・修正シート!J11>=$G$3,納税課用・修正シート!J11,③記入様式!$AR$74)","v":"2024-08-30"},{"$f":"IF(納税課用・修正シート!K11>=$G$3,納税課用・修正シート!K11,③記入様式!$AR$74)","v":"2024-09-17"},null,"第５期",null,null,null,null,null,null,"2024-10-31","2024-11-20"]
["１０月",{"$f":"納税課用・修正シート!I12","v":"2024-10-31"},{"$f":"DBCS(IF(納税課用・修正シート!E12=\"\",\"\",納税課用・修正シート!E12))","v":"第３期"},{"$f":"DBCS(IF(納税課用・修正シート!F12=\"\",\"\",納税課用・修正シート!F12))","v":""},{"$f":"DBCS(IF(納税課用・修正シート!G12=\"\",\"\",納税課用・修正シート!G12))","v":""},{"$f":"DBCS(IF(納税課用・修正シート!H12=\"\",\"\",納税課用・修正シート!H12))","v":"第４期"},{"$f":"IF(納税課用・修正シート!J12>=$G$3,納税課用・修正シート!J12,③記入様式!$AR$74)","v":"2024-09-30"},{"$f":"IF(納税課用・修正シート!K12>=$G$3,納税課用・修正シート!K12,③記入様式!$AR$74)","v":"2024-10-21"},null,"第６期",null,null,null,null,null,null,"2024-11-25","2024-12-13"]
["１１月",{"$f":"納税課用・修正シート!I13","v":"2024-12-02"},{"$f":"DBCS(IF(納税課用・修正シート!E13=\"\",\"\",納税課用・修正シート!E13))","v":""},{"$f":"DBCS(IF(納税課用・修正シート!F13=\"\",\"\",納税課用・修正シート!F13))","v":""},{"$f":"DBCS(IF(納税課用・修正シート!G13=\"\",\"\",納税課用・修正シート!G13))","v":""},{"$f":"DBCS(IF(納税課用・修正シート!H13=\"\",\"\",納税課用・修正シート!H13))","v":"第５期"},{"$f":"IF(納税課用・修正シート!J13>=$G$3,納税課用・修正シート!J13,③記入様式!$AR$74)","v":"2024-10-31"},{"$f":"IF(納税課用・修正シート!K13>=$G$3,納税課用・修正シート!K13,③記入様式!$AR$74)","v":"2024-11-20"},null,"第７期",null,null,null,null,null,null,"2024-12-20","2025-01-21"]
["１２月",{"$f":"納税課用・修正シート!I14","v":"2024-12-25"},{"$f":"DBCS(IF(納税課用・修正シート!E14=\"\",\"\",納税課用・修正シート!E14))","v":""},{"$f":"DBCS(IF(納税課用・修正シート!F14=\"\",\"\",納税課用・修正シート!F14))","v":"第３期"},{"$f":"DBCS(IF(納税課用・修正シート!G14=\"\",\"\",納税課用・修正シート!G14))","v":""},{"$f":"DBCS(IF(納税課用・修正シート!H14=\"\",\"\",納税課用・修正シート!H14))","v":"第６期"},{"$f":"IF(納税課用・修正シート!J14>=$G$3,納税課用・修正シート!J14,③記入様式!$AR$74)","v":"2024-11-25"},{"$f":"IF(納税課用・修正シート!K14>=$G$3,納税課用・修正シート!K14,③記入様式!$AR$74)","v":"2024-12-13"},null,"第８期",null,null,null,null,null,null,"2025-01-31","2025-02-17"]
["１月",{"$f":"納税課用・修正シート!I15","v":"2025-01-31"},{"$f":"DBCS(IF(納税課用・修正シート!E15=\"\",\"\",納税課用・修正シート!E15))","v":"第４期"},{"$f":"DBCS(IF(納税課用・修正シート!F15=\"\",\"\",納税課用・修正シート!F15))","v":""},{"$f":"DBCS(IF(納税課用・修正シート!G15=\"\",\"\",納税課用・修正シート!G15))","v":""},{"$f":"DBCS(IF(納税課用・修正シート!H15=\"\",\"\",納税課用・修正シート!H15))","v":"第７期"},{"$f":"IF(納税課用・修正シート!J15>=$G$3,納税課用・修正シート!J15,③記入様式!$AR$74)","v":"2024-12-20"},{"$f":"IF(納税課用・修正シート!K15>=$G$3,納税課用・修正シート!K15,③記入様式!$AR$74)","v":"2025-01-21"},null,null,"全期\n（第１期）","全期"]
["２月",{"$f":"納税課用・修正シート!I16","v":"2025-02-28"},{"$f":"DBCS(IF(納税課用・修正シート!E16=\"\",\"\",納税課用・修正シート!E16))","v":""},{"$f":"DBCS(IF(納税課用・修正シート!F16=\"\",\"\",納税課用・修正シート!F16))","v":"第４期"},{"$f":"DBCS(IF(納税課用・修正シート!G16=\"\",\"\",納税課用・修正シート!G16))","v":""},{"$f":"DBCS(IF(納税課用・修正シート!H16=\"\",\"\",納税課用・修正シート!H16))","v":"第８期"},{"$f":"IF(納税課用・修正シート!J16>=$G$3,納税課用・修正シート!J16,③記入様式!$AR$74)","v":"2025-01-31"},{"$f":"IF(納税課用・修正シート!K16>=$G$3,納税課用・修正シート!K16,③記入様式!$AR$74)","v":"2025-02-17"},null,"受付可能か否か"]
["　※　納期限は特に記載のない場合、月末です。ただし、納期限が金融機関の休業日であるときは翌営業日となります。",null,null,null,null,null,null,null,null,null,{"$f":"③記入様式!$AR$49","v":"振替"},{"$f":"③記入様式!$AR$50","v":"廃止"},{"$f":"③記入様式!$AR$49","v":"振替"},{"$f":"③記入様式!$AR$50","v":"廃止"},{"$f":"③記入様式!$AR$49","v":"振替"},{"$f":"③記入様式!$AR$50","v":"廃止"},{"$f":"③記入様式!$AR$49","v":"振替"},{"$f":"③記入様式!$AR$50","v":"廃止"}]
[null,null,null,null,null,null,null,null,null,"第1期",{"$f":"IF(K9=③記入様式!$AR$74,③記入様式!$AR$71,IF(K9>$G$3,③記入様式!$AR$70,③記入様式!$AR$71))","v":"○"},{"$f":"IF(L9=③記入様式!$AR$74,③記入様式!$AR$71,IF(L9>$G$3,③記入様式!$AR$70,③記入様式!$AR$71))","v":"○"},{"$f":"IF(M9=③記入様式!$AR$74,③記入様式!$AR$71,IF(M9>$G$3,③記入様式!$AR$70,③記入様式!$AR$71))","v":"○"},{"$f":"IF(N9=③記入様式!$AR$74,③記入様式!$AR$71,IF(N9>$G$3,③記入様式!$AR$70,③記入様式!$AR$71))","v":"○"},{"$f":"IF(O9=③記入様式!$AR$74,③記入様式!$AR$71,IF(O9>$G$3,③記入様式!$AR$70,③記入様式!$AR$71))","v":"○"},{"$f":"IF(P9=③記入様式!$AR$74,③記入様式!$AR$71,IF(P9>$G$3,③記入様式!$AR$70,③記入様式!$AR$71))","v":"○"},{"$f":"IF(Q9=③記入様式!$AR$74,③記入様式!$AR$71,IF(Q9>$G$3,③記入様式!$AR$70,③記入様式!$AR$71))","v":"○"},{"$f":"IF(R9=③記入様式!$AR$74,③記入様式!$AR$71,IF(R9>$G$3,③記入様式!$AR$70,③記入様式!$AR$71))","v":"○"}]
[null,null,null,null,null,null,null,null,null,"第2期",{"$f":"IF(K10=③記入様式!$AR$74,③記入様式!$AR$71,IF(K10>$G$3,③記入様式!$AR$70,③記入様式!$AR$71))","v":"○"},{"$f":"IF(L10=③記入様式!$AR$74,③記入様式!$AR$71,IF(L10>$G$3,③記入様式!$AR$70,③記入様式!$AR$71))","v":"○"},{"$f":"IF(M10=③記入様式!$AR$74,③記入様式!$AR$71,IF(M10>$G$3,③記入様式!$AR$70,③記入様式!$AR$71))","v":"○"},{"$f":"IF(N10=③記入様式!$AR$74,③記入様式!$AR$71,IF(N10>$G$3,③記入様式!$AR$70,③記入様式!$AR$71))","v":"○"},null,null,{"$f":"IF(Q10=③記入様式!$AR$74,③記入様式!$AR$71,IF(Q10>$G$3,③記入様式!$AR$70,③記入様式!$AR$71))","v":"○"},{"$f":"IF(R10=③記入様式!$AR$74,③記入様式!$AR$71,IF(R10>$G$3,③記入様式!$AR$70,③記入様式!$AR$71))","v":"○"}]
[null,null,null,null,null,null,null,null,null,"第3期",{"$f":"IF(K11=③記入様式!$AR$74,③記入様式!$AR$71,IF(K11>$G$3,③記入様式!$AR$70,③記入様式!$AR$71))","v":"○"},{"$f":"IF(L11=③記入様式!$AR$74,③記入様式!$AR$71,IF(L11>$G$3,③記入様式!$AR$70,③記入様式!$AR$71))","v":"○"},{"$f":"IF(M11=③記入様式!$AR$74,③記入様式!$AR$71,IF(M11>$G$3,③記入様式!$AR$70,③記入様式!$AR$71))","v":"○"},{"$f":"IF(N11=③記入様式!$AR$74,③記入様式!$AR$71,IF(N11>$G$3,③記入様式!$AR$70,③記入様式!$AR$71))","v":"○"},null,null,{"$f":"IF(Q11=③記入様式!$AR$74,③記入様式!$AR$71,IF(Q11>$G$3,③記入様式!$AR$70,③記入様式!$AR$71))","v":"○"},{"$f":"IF(R11=③記入様式!$AR$74,③記入様式!$AR$71,IF(R11>$G$3,③記入様式!$AR$70,③記入様式!$AR$71))","v":"○"}]
[null,null,null,null,null,null,null,null,null,"第4期",{"$f":"IF(K12=③記入様式!$AR$74,③記入様式!$AR$71,IF(K12>$G$3,③記入様式!$AR$70,③記入様式!$AR$71))","v":"○"},{"$f":"IF(L12=③記入様式!$AR$74,③記入様式!$AR$71,IF(L12>$G$3,③記入様式!$AR$70,③記入様式!$AR$71))","v":"○"},{"$f":"IF(M12=③記入様式!$AR$74,③記入様式!$AR$71,IF(M12>$G$3,③記入様式!$AR$70,③記入様式!$AR$71))","v":"○"},{"$f":"IF(N12=③記入様式!$AR$74,③記入様式!$AR$71,IF(N12>$G$3,③記入様式!$AR$70,③記入様式!$AR$71))","v":"○"},null,null,{"$f":"IF(Q12=③記入様式!$AR$74,③記入様式!$AR$71,IF(Q12>$G$3,③記入様式!$AR$70,③記入様式!$AR$71))","v":"○"},{"$f":"IF(R12=③記入様式!$AR$74,③記入様式!$AR$71,IF(R12>$G$3,③記入様式!$AR$70,③記入様式!$AR$71))","v":"○"}]
[null,null,null,null,null,null,null,null,null,"第5期",null,null,null,null,null,null,{"$f":"IF(Q13=③記入様式!$AR$74,③記入様式!$AR$71,IF(Q13>$G$3,③記入様式!$AR$70,③記入様式!$AR$71))","v":"○"},{"$f":"IF(R13=③記入様式!$AR$74,③記入様式!$AR$71,IF(R13>$G$3,③記入様式!$AR$70,③記入様式!$AR$71))","v":"○"}]
[null,null,null,null,null,null,null,null,null,"第6期",null,null,null,null,null,null,{"$f":"IF(Q14=③記入様式!$AR$74,③記入様式!$AR$71,IF(Q14>$G$3,③記入様式!$AR$70,③記入様式!$AR$71))","v":"○"},{"$f":"IF(R14=③記入様式!$AR$74,③記入様式!$AR$71,IF(R14>$G$3,③記入様式!$AR$70,③記入様式!$AR$71))","v":"○"}]
[null,null,null,null,null,null,null,null,null,"第7期",null,null,null,null,null,null,{"$f":"IF(Q15=③記入様式!$AR$74,③記入様式!$AR$71,IF(Q15>$G$3,③記入様式!$AR$70,③記入様式!$AR$71))","v":"○"},{"$f":"IF(R15=③記入様式!$AR$74,③記入様式!$AR$71,IF(R15>$G$3,③記入様式!$AR$70,③記入様式!$AR$71))","v":"○"}]
[null,null,null,null,null,null,null,null,null,"第8期",null,null,null,null,null,null,{"$f":"IF(Q16=③記入様式!$AR$74,③記入様式!$AR$71,IF(Q16>$G$3,③記入様式!$AR$70,③記入様式!$AR$71))","v":"○"},{"$f":"IF(R16=③記入様式!$AR$74,③記入様式!$AR$71,IF(R16>$G$3,③記入様式!$AR$70,③記入様式!$AR$71))","v":"○"}]

{"sheet":"③記入様式","index":2,"n_rows":127,"n_cols":56,"rows_kept":127,"cut":false,"hidden":false,"merged":[[17,37,18,38],[17,34,17,36],[17,27,17,28],[17,30,17,31],[17,32,17,33],[18,27,18,28],[18,30,18,36],[20,27,20,28],[21,27,21,28],[20,30,20,31],[21,30,21,36],[20,34,20,36],[101,0,106,1],[33,29,33,33],[102,4,103,4],[102,5,103,5],[102,6,103,6],[102,7,103,7],[102,8,103,8],[89,0,92,1],[89,2,90,3],[91,2,92,3],[104,11,106,11],[102,2,103,2],[102,3,103,3],[29,0,34,1],[56,0,59,1],[96,2,98,3],[99,2,100,3],[99,4,100,19],[32,3,34,10],[95,2,95,3],[90,4,90,19],[20,22,20,25],[21,22,21,25],[20,32,20,33],[19,22,19,26],[19,27,19,37],[104,3,106,10],[104,2,106,2],[29,13,29,19],[29,2,29,5],[29,9,29,12],[30,2,31,2],[56,2,57,3],[58,4,59,19],[60,4,61,19],[30,3,31,3],[30,4,31,4],[30,5,31,5],[30,6,31,6],[30,8,31,8],[30,13,31,19],[30,9,31,12],[30,7,31,7],[96,4,98,19],[104,12,106,19],[68,2,68,5],[68,9,68,12],[68,13,68,19],[66,4,67,19],[63,4,65,19],[32,12,34,19],[69,9,70,12],[106,34,106,38],[95,4,95,19],[102,9,103,12],[100,22,100,26],[100,27,100,37],[72,34,72,38],[85,0,85,38],[87,0,87,15],[89,5,89,19],[93,0,100,1],[101,2,101,5],[101,9,101,12],[101,13,101,19],[102,13,103,19],[95,37,96,38],[94,22,94,26],[94,27,94,37],[97,22,97,26],[97,27,97,37],[98,22,98,25],[91,4,92,19],[93,4,94,19],[88,0,88,3],[13,0,13,38],[16,0,16,3],[21,0,28,1],[21,2,22,3],[21,17,21,19],[17,0,20,1],[17,2,18,3],[19,2,20,3],[23,2,23,3],[15,0,15,15],[19,4,20,19],[23,4,23,16],[21,4,22,16],[17,10,17,19],[22,27,22,37],[18,4,18,19],[17,5,17,9],[22,22,22,26],[23,22,23,25],[15,28,15,29],[15,30,15,31],[15,33,15,34],[15,36,15,37],[20,37,21,38],[60,0,67,1],[60,2,61,3],[55,0,55,3],[54,0,54,15],[33,34,33,38],[54,32,54,38],[58,22,58,26],[58,27,58,37],[71,2,73,2],[32,11,34,11],[32,2,34,2],[52,0,52,38],[58,2,59,3],[62,2,62,3],[62,4,62,19],[56,5,56,19],[57,4,57,19],[56,21,58,21],[56,27,56,28],[56,30,56,31],[56,34,56,36],[57,27,57,28],[66,2,67,3],[63,2,65,3],[95,22,95,25],[95,26,96,36],[96,22,96,25],[89,21,91,21],[92,21,94,21],[91,22,91,26],[89,27,89,28],[90,27,90,28],[89,30,89,31],[89,32,89,33],[92,30,92,31],[92,32,92,33],[92,34,92,36],[93,30,93,36],[92,22,92,25],[93,22,93,25],[92,27,92,28],[93,27,93,28],[25,27,25,37],[23,37,24,38],[26,22,26,25],[27,22,27,25],[26,27,26,28],[26,30,26,31],[26,34,26,36],[27,27,27,28],[27,30,27,36],[24,22,24,25],[27,4,28,19],[24,2,26,3],[24,4,26,16],[27,2,28,3],[22,17,26,19],[60,30,60,36],[56,37,57,38],[28,22,28,26],[28,27,28,37],[26,37,27,38],[31,21,32,38],[26,32,26,33],[59,21,61,21],[59,22,59,25],[61,22,61,26],[61,27,61,37],[59,32,59,33],[59,27,59,28],[60,27,60,28],[59,30,59,31],[59,34,59,36],[59,37,60,38],[23,26,24,36],[25,22,25,26],[17,21,18,21],[20,21,21,21],[65,21,67,21],[67,22,67,26],[67,27,67,37],[65,22,65,25],[66,22,66,25],[65,27,65,28],[66,27,66,28],[65,30,65,31],[66,30,66,36],[65,37,66,38],[65,34,65,36],[65,32,65,33],[62,22,62,25],[63,22,63,25],[62,26,63,36],[62,37,63,38],[62,21,64,21],[64,22,64,26],[64,27,64,37],[57,30,57,36],[56,32,56,33],[60,22,60,25],[92,37,93,38],[91,27,91,37],[68,21,69,38],[70,21,71,38],[72,29,72,33],[72,24,72,28],[77,0,77,38],[75,0,76,1],[71,11,73,11],[87,32,87,38],[75,2,76,17],[69,13,70,19],[79,0,81,1],[93,2,94,3],[68,0,73,1],[71,12,73,19],[71,3,73,10],[69,2,70,2],[69,3,70,3],[69,4,70,4],[69,5,70,5],[69,6,70,6],[69,7,70,7],[69,8,70,8],[29,21,30,38],[17,22,18,25],[56,22,57,25],[89,22,90,25],[107,0,108,19],[101,21,101,38],[102,21,102,38],[104,21,105,38],[106,29,106,33],[23,21,24,21],[26,21,27,21],[99,22,99,25],[95,21,97,21],[98,21,100,21],[98,27,98,28],[99,27,99,28],[98,30,98,31],[98,32,98,33],[98,34,98,36],[98,37,99,38],[99,30,99,36],[89,34,89,36],[89,37,90,38],[90,30,90,36]]}
[]
[]
[]
[]
[]
[]
[]
[]
[]
[]
[]
[]
[null,null,null,null,null,null,null,null,null,null,null,null,null,null,null,null,null,null,null,null,null,null,null,null,null,null,null,null,null,null,null,null,null,null,null,null,null,null,null,null,null,null,"AN列～CJ列は非表示に。"]
["たつの市市税等口座振替依頼書兼解約届書",null,null,null,null,null,null,null,null,null,null,null,null,null,null,null,null,null,null,null,null,null,null,null,null,null,null,null,null,null,null,null,null,null,null,null,null,null,null,null,null,null,null,"データ処理、変換用"]
[]
[null,null,null,null,null,null,null,null,null,null,null,null,null,null,null,null,null,null,null,null,null,null,null,null,null,null,null,null,"令和",null,{"$f":"AR18","v":6},null,"年",{"$f":"AR19","v":"3"},null,"月",{"$f":"AR20","v":"12"},null,"日",null,null,null,"日付",{"$f":"TODAY()","v":"2024-03-12"},null,null,null,"チェック項目","番号","セルの位置","項目","接続語","チェックの内容","チェック","エラーメッセージ"]
["申込区分",null,null,null,null,null,"１　新規",null,null,null,"２　解約",null,null,null,null,null,null,null,null,null,null,null,null,null,null,null,null,null,null,null,null,null,null,null,null,null,null,"※最短で提出月の翌月末から振替を開始します。",null,null,null,null,"年",{"$f":"TEXT($AR$16,\"yyyy\")","v":"2024"},null,null,null,null,{"$f":"ROW()-16","v":1},"E17","申込区分","は","どちらかにチェックを記入してください。",{"$f":"IF($AR$56=$AR$72,IF($AR$57=$AR$72,0,1),IF($AR$57=$AR$72,1,0))","v":0},{"$f":"IF(BB17=1,\"OK\",\"記入誤り！　【\"&AY17&\"】\"&AZ17&BA17)","v":"記入誤り！　【申込区分】はどちらかにチェックを記入してください。"}]
["納税義務者",null,"住所",null,"〒",null,null,null,null,null,null,null,null,null,null,null,null,null,null,null,null,null," 市民税・県民税\n・森林環境税\n(普通徴収分）",null,null,null,null,"令和",null,null,"年度",null,null,null,"から期別",null,null,null,null,null,null,null,"和暦",{"$f":"AR17-2018","v":6},null,null,null,null,{"$f":"ROW()-16","v":2},"E18","納税義務者","の","郵便番号は正しく記載してください。（ハイフン\"-\"あり）",{"$f":"IF(LEN(F18)=8,1,0)","v":0},{"$f":"IF(BB18=1,\"OK\",\"記入誤り！　【\"&AY18&\"】\"&AZ18&BA18)","v":"記入誤り！　【納税義務者】の郵便番号は正しく記載してください。（ハイフン\"-\"あり）"}]
[null,null,null,null,null,null,null,null,null,null,null,null,null,null,null,null,null,null,null,null,null,null,null,null,null,null,null,"令和",null,null,"年度から一括",null,null,null,null,null,null,null,null,null,null,null,"月",{"$f":"TEXT($AR$16,\"m\")","v":"3"},null,null,null,null,3,"E19","納税義務者","の","住所を正しく記載してください。",{"$f":"IF(E19<>\"\",1,0)","v":0},{"$f":"IF(BB19=1,\"OK\",\"記入誤り！　【\"&AY19&\"】\"&AZ19&BA19)","v":"記入誤り！　【納税義務者】の住所を正しく記載してください。"}]
[null,null,"氏名",null,null,null,null,null,null,null,null,null,null,null,null,null,null,null,null,null,null,null,"通知書番号",null,null,null,null,null,null,null,null,null,null,null,null,null,null,null,null,null,null,null,"日",{"$f":"TEXT($AR$16,\"d\")","v":"12"},null,null,null,null,4,"E19","納税義務者","の","住所に番地（数字）を記載してください。",{"$f":"IF(AR27<>\"\",1,0)","v":0},"記入誤り！　【納税義務者】の住所に番地（数字）を記載してください。"]
[null,null,null,null,null,null,null,null,null,null,null,null,null,null,null,null,null,null,null,null,null,null,"固定資産税",null,null,null,null,"令和",null,null,"年度",null,null,null,"から期別",null,null,null,null,null,null,null,"申込み区分",null,null,null,null,null,5,"E20","納税義務者","の","氏名を記載してください。",{"$f":"IF(E20<>\"\",1,0)","v":0},"記入誤り！　【納税義務者】の氏名を記載してください。"]
["口座名義人",null,"住所",null,null,null,null,null,null,null,null,null,null,null,null,null,null,"お届け印",null,null,null,null,"都市計画税",null,null,null,null,"令和",null,null,"年度から一括",null,null,null,null,null,null,null,null,null,null,null,"選択肢","１ 新規",null,null,null,null,6,"E22","口座名義人","の","住所を正しく記載してください。",{"$f":"IF(E22<>\"\",1,0)","v":0},"記入誤り！　【口座名義人】の住所を正しく記載してください。"]
[null,null,null,null,null,null,null,null,null,null,null,null,null,null,null,null,null,"印",null,null,null,null,"通知書番号",null,null,null,null,null,null,null,null,null,null,null,null,null,null,null,null,null,null,null,null,"２ 解約",null,null,null,null,7,"E22","口座名義人","の","住所に「同上」は使用できません。",{"$f":"IF(COUNTIF(E22,\"*同上*\"),0,1)","v":1},"OK"]
[null,null,"電話",null,null,null,null,null,null,null,null,null,null,null,null,null,null,null,null,null,null,null," 軽自動車税",null,null,null,"翌年度から納税義務者名義の\nすべての車両について適用",null,null,null,null,null,null,null,null,null,null,null,null,null,null,null,"住所",null,null,null,null,null,8,"E24","口座名義人","の","電話番号を市外局番から正しく記載してください。（ハイフン\"-\"あり）",{"$f":"IF(AR29>=12,1,0)","v":0},"記入誤り！　【口座名義人】の電話番号を市外局番から正しく記載してください。（ハイフン\"-\"あり）"]
[null,null,"ﾌﾘｶﾞﾅ",null,null,null,null,null,null,null,null,null,null,null,null,null,null,null,null,null,null,null,"（種別割)",null,null,null,null,null,null,null,null,null,null,null,null,null,null,null,null,null,null,null,"住所+”兵庫県”",{"$f":"\"兵庫県\"&E19","v":"兵庫県"},null,null,null,null,9,"E28","口座名義人","の","氏名を記載してください。",{"$f":"IF(E28<>\"\",1,0)","v":0},"記入誤り！　【口座名義人】の氏名を記載してください。"]
[null,null,null,null,null,null,null,null,null,null,null,null,null,null,null,null,null,null,null,null,null,null,"通知書番号",null,null,null,null,null,null,null,null,null,null,null,null,null,null,null,null,null,null,null,"→番地を削除",{"$f":"LEFT(AR25,MIN(FIND({0,1,2,3,4,5,6,7,8,9},ASC(AR25)&1234567890)-1))","v":"兵庫県"},null,null,null,null,10,"E25","口座名義人","の","フリガナを記載してください。（小文字が含まれている場合は大文字で記入してください）",{"$f":"IF(E25<>\"\",IF(AT101=0,1,0),0)","v":0},"記入誤り！　【口座名義人】のフリガナを記載してください。（小文字が含まれている場合は大文字で記入してください）"]
[null,null,null,null,null,null,null,null,null,null,null,null,null,null,null,null,null,null,null,null,null,null," 国民健康\n保険税",null,null,null,null,"令和",null,null,"年度",null,null,null,"から期別",null,null,null,null,null,null,null,"→番地のみ",{"$f":"SUBSTITUTE(AR25,AR26,\"\")","v":""},null,null,null,null,11,"D33","取扱金融機関","の","名称を選択してください。",{"$f":"IF(D33<>\"\",1,0)","v":0},"記入誤り！　【取扱金融機関】の名称を選択してください。"]
[null,null,"氏名",null,null,null,null,null,null,null,null,null,null,null,null,null,null,null,null,null,null,null,"（普通徴収分）",null,null,null,null,"令和",null,null,"年度から一括",null,null,null,null,null,null,null,null,null,null,null,"電話番号の桁数",null,"口座番号の桁数",null,null,null,12,"M33","取扱金融機関","の","支店名を正しく選択してください。",{"$f":"IF(G31=取扱金融機関!D12,0,IF(M33<>\"\",1,0))","v":0},"記入誤り！　【取扱金融機関】の支店名を正しく選択してください。"]
[null,null,null,null,null,null,null,null,null,null,null,null,null,null,null,null,null,null,null,null,null,null,"通知書番号",null,null,null,null,null,null,null,null,null,null,null,null,null,null,null,null,null,null,null,null,{"$f":"LEN(E24)","v":0},null,{"$f":"LEN(N31)","v":0},null,null,13,"J31","預貯金種別","を","選択してください。",{"$f":"IF(J31<>\"\",1,0)","v":0},"記入誤り！　【預貯金種別】を選択してください。"]
["金融機関",null,"金融機関コード",null,null,null,null,"支店コード",null,"預貯金種別",null,null,null,"口座番号（右づめ）",null,null,null,null,null,null,null,"※口座振替の開始期別の記載がない場合は、受付から直近の期別納付で振替を開始します。\n※年度途中での一括納付を申込みの場合は、翌年度からの一括振替となります。",null,null,null,null,null,null,null,null,null,null,null,null,null,null,null,null,null,null,null,null,"預貯金種別",null,null,null,null,null,14,"N31","口座番号","を","正しく7桁で記入してください。",{"$f":"IF(N31=\"\",0,IF(AT29=7,1,0))","v":0},"記入誤り！　【口座番号】を正しく7桁で記入してください。"]
[null,null,{"$f":"取扱金融機関!C3","v":""},{"$f":"取扱金融機関!D3","v":""},{"$f":"取扱金融機関!E3","v":""},{"$f":"取扱金融機関!F3","v":""},{"$f":"IFERROR(取扱金融機関!C7,取扱金融機関!D12)","v":"-"},{"$f":"IFERROR(取扱金融機関!D7,取扱金融機関!D12)","v":"-"},{"$f":"IFERROR(取扱金融機関!E7,取扱金融機関!D12)","v":"-"},null,null,null,null,null,null,null,null,null,null,null,null,null,null,null,null,null,null,null,null,null,null,null,null,null,null,null,null,null,null,null,null,null,"選択肢","普通(総合)",null,null,null,null,15,"V18","市県民税","の","振替希望税目にチェックを記入してください。",{"$f":"IF(AR52=$AR$72,1,IF(AND(AT52=$AR$73,AT53=$AR$73,AD18=\"\",AG18=\"\",AD19=\"\"),1,0))","v":1},"OK"]
[null,null,null,null,null,null,null,null,null,null,null,null,null,null,null,null,null,null,null,null,null,"　私が支払うべき市税等について、たつの市から通知があったときは、口座振替により納付をしたいので、下記の確約事項を確認のうえ、市が指定する振替日に上記のとおりたつの市口座へ振込みを依頼します。",null,null,null,null,null,null,null,null,null,null,null,null,null,null,null,null,null,null,null,null,null,"当座",null,null,null,null,16,"AA18,19","市県民税","の","開始期間のどちらか又は両方にチェックを記入してください。",{"$f":"IF(AR52=$AR$73,1,IF(AND(AT52=$AR$73,AT53=$AR$73),0,1))","v":1},{"$f":"IF(BB32=1,\"OK\",\"記入誤り！　【\"&AY32&\"】\"&AZ32&BA32)","v":"OK"}]
[null,null,"名称",null,null,null,null,null,null,null,null,"支店名",null,null,null,null,null,null,null,null,null,null,null,null,null,null,null,null,null,null,null,null,null,null,null,null,null,null,null,null,null,null,null,"納税準備",null,null,null,null,17,"AA18","市県民税（期別）","の","開始期間にチェックを記入してください。",{"$f":"IF(AR52=$AR$73,1,IF(AT52=$AR$72,1,IF(AD18<>\"\",0,IF(AG18<>\"\",0,1))))","v":1},"OK"]
[null,null,null,null,null,null,null,null,null,null,null,null,null,null,null,null,null,null,null,null,null,null,null,null,null,null,null,null,null,"市役所日附印",null,null,null,null,"取扱店日附印",null,null,null,null,null,null,null,"取扱金融機関",null,null,null,null,null,18,"AD18","市県民税","の","開始年度を記入してください。",{"$f":"IF(AT52=$AR$73,1,IF(AD18=\"\",0,1))","v":1},"OK"]
[null,null,null,null,null,null,null,null,null,null,null,null,null,null,null,null,null,null,null,null,null,null,null,null,null,null,null,null,null,null,null,null,null,null,null,null,null,null,null,null,null,null,"選択肢","三井住友銀行",null,null,null,null,19,"AG18","市県民税","の","期間（第○期）を選択してください。※AA12にチェックの場合",{"$f":"IF(AT52=$AR$72,IF(AG18<>\"\",1,0),1)","v":1},"OK"]
[null,"　 ",null,null,null,null,null,null,null,null,null,null,null,null,null,null,null,null,null,null,null,null,null,null,null,null,null,null,null,null,null,null,null,null,null,null,null,null,null,null,null,null,null,"みなと銀行",null,null,null,null,20,"AG18","市県民税","に","選択された”期間”の受付は終了しました",{"$f":"IF(AT52=$AR$73,1,IF(BA68=$AR$70,1,0))","v":1},"OK"]
[null,null,null,null,null,null,null,null,null,null,null,null,null,null,null,null,null,null,null,null,null,null,null,null,null,null,null,null,null,null,null,null,null,null,null,null,null,null,null,null,null,null,null,"トマト銀行",null,null,null,null,21,"AA19","市県民税（一括）","の","開始期間にチェックを記入してください。",{"$f":"IF(AR52=$AR$73,1,IF(AT53=$AR$72,1,IF(AD19<>\"\",0,1)))","v":1},{"$f":"IF(BB37=1,\"OK\",\"記入誤り！　【\"&AY37&\"】\"&AZ37&BA37)","v":"OK"}]
[null,null,null,null,null,null,null,null,null,null,null,null,null,null,null,null,null,null,"（金融機関用）",null,null,null,null,null,null,null,null,null,null,null,null,null,null,null,null,null,null,null,null,null,null,null,null,"姫路信用金庫",null,null,null,null,22,"AD19","市県民税","の","開始年度を記入してください。※AA14にチェックの場合",{"$f":"IF(AT53=$AR$72,IF(AD19<>\"\",1,0),1)","v":1},"OK"]
[null,null,null,null,null,null,null,null,null,null,null,null,null,null,null,null,null,null,null,null,null,null,null,null,null,null,null,null,null,null,null,null,null,null,null,null,null,null,null,null,null,null,null,"播州信用金庫",null,null,null,null,23,"AD19","市県民税","に","記入された”年度”の受付は終了しました",{"$f":"IF(AT53=$AR$73,1,IF(BA69=$AR$70,1,0))","v":1},"OK"]
[null,"確約事項",null,null,null,null,null,null,null,null,null,null,null,null,null,null,null,null,null,null,null,null,null,null,null,null,null,null,null,null,null,null,null,null,null,null,null,null,null,null,null,null,null,"兵庫信用金庫",null,null,null,null,24,"AB20","市県民税","の","「通知書番号」を記入してください。",{"$f":"IF(AR52=$AR$73,1,IF(AB20<>\"\",1,0))","v":1},{"$f":"IF(BB40=1,\"OK\",\"記入誤り！　【\"&AY40&\"】\"&AZ40&BA40)","v":"OK"}]
[null,null,1,null,"普通預金又は当座預金の約定にかかわらず、小切手の振出し又は普通預金通帳及び預金払戻請求書等の提出は省略させてください。",null,null,null,null,null,null,null,null,null,null,null,null,null,null,null,null,null,null,null,null,null,null,null,null,null,null,null,null,null,null,null,null,null,null,null,null,null,null,"西兵庫信用金庫",null,null,null,null,25,"V21","固定資産税、都市計画課税","の","振替希望税目にチェックを記入してください。",{"$f":"IF(AR53=$AR$72,1,IF(AND(AT54=$AR$73,AT55=$AR$73,AD21=\"\",AG21=\"\",AD22=\"\"),1,0))","v":1},"OK"]
[null,null,2,null,"この口座振替契約は、貴店並びにたつの市が必要と認めた場合には、私に通知することなく解除されても異議はありません。",null,null,null,null,null,null,null,null,null,null,null,null,null,null,null,null,null,null,null,null,null,null,null,null,null,null,null,null,null,null,null,null,null,null,null,null,null,null,"兵庫県医療信用組合",null,null,null,null,26,"AA21,22","固定資産税、都市計画課税","の","開始期間のどちらか又は両方にチェックを記入してください。",{"$f":"IF(AR53=$AR$73,1,IF(AND(AT54=$AR$73,AT55=$AR$73),0,1))","v":1},"OK"]
[null,null,3,null,"私の都合により、この取扱いを解約・変更するときは、直ちに貴店並びにたつの市へ届出をします。",null,null,null,null,null,null,null,null,null,null,null,null,null,null,null,null,null,null,null,null,null,null,null,null,null,null,null,null,null,null,null,null,null,null,null,null,null,null,"兵庫県信用組合",null,null,null,null,27,"AA21","固定資産税、都市計画課税（期別）","の","開始期間にチェックを記入してください。",{"$f":"IF(AR53=$AR$73,1,IF(AT54=$AR$72,1,IF(AD21<>\"\",0,IF(AG21<>\"\",0,1))))","v":1},"OK"]
[null,null,4,null,"この取扱いについて紛議が生じても、貴店並びにたつの市に迷惑をかけません。",null,null,null,null,null,null,null,null,null,null,null,null,null,null,null,null,null,null,null,null,null,null,null,null,null,null,null,null,null,null,null,null,null,null,null,null,null,null,"兵庫西農業協同組合",null,null,null,null,28,"AD21","固定資産税、都市計画課税","の","開始年度を記入してください。",{"$f":"IF(AT54=$AR$73,1,IF(AD21=\"\",0,1))","v":1},"OK"]
[null,null,null,null,null,null,null,null,null,null,null,null,null,null,null,null,null,null,null,null,null,null,null,null,null,null,null,null,null,null,null,null,null,null,null,null,null,null,null,null,null,null,null,"なぎさ信用漁業協同連合会",null,null,null,null,29,"AG21","固定資産税、都市計画課税","の","期間（第○期）を選択してください。※AA16にチェックの場合",{"$f":"IF(AT54=$AR$72,IF(AG21<>\"\",1,0),1)","v":1},"OK"]
[null,"注意事項",null,null,null,null,null,null,null,null,null,null,null,null,null,null,null,null,null,null,null,null,null,null,null,null,null,null,null,null,null,null,null,null,null,null,null,null,null,null,null,null,null,"ゆうちょ銀行",null,null,null,null,30,"AG21","固定資産税、都市計画課税","に","選択された”期間”の受付は終了しました",{"$f":"IF(AT54=$AR$73,1,IF(BA70=$AR$70,1,0))","v":1},"OK"]
[null,null,"・","新規取扱は、金融機関受付日が25日までの場合は翌月以後に、その日が26日以降の場合は翌々月以後に到来する納期の市税から口座振",null,null,null,null,null,null,null,null,null,null,null,null,null,null,null,null,null,null,null,null,null,null,null,null,null,null,null,null,null,null,null,null,null,null,null,null,null,null,"振込又は廃止",null,null,null,null,null,31,"AA22","固定資産税、都市計画課税（一括）","の","開始期間にチェックを記入してください。",{"$f":"IF(AR53=$AR$73,1,IF(AT55=$AR$72,1,IF(AD22<>\"\",0,1)))","v":1},"OK"]
[null,null,null,"替を開始します。",null,null,null,null,null,null,null,null,null,null,null,null,null,null,null,null,null,null,null,null,null,null,null,null,null,null,null,null,null,null,null,null,null,null,null,null,null,null,"この届出はどちら？",{"$f":"IF(AR56=$AR$72,AR49,IF(AR57=$AR$72,AR50))","v":false},null,null,null,null,32,"AD22","固定資産税、都市計画課税","の","開始年度を記入してください。※AA18にチェックの場合",{"$f":"IF(AT55=$AR$72,IF(AD22<>\"\",1,0),1)","v":1},"OK"]
[null,null,"・","振替日は、各納期限日とします。ただし、振替日が金融機関の休業日の場合は翌営業日となります。",null,null,null,null,null,null,null,null,null,null,null,null,null,null,null,null,null,null,null,null,null,null,null,null,null,null,null,null,null,null,null,null,null,null,null,null,null,null,"選択肢","振替",null,null,null,null,33,"AD22","固定資産税、都市計画課税","に","記入された”年度”の受付は終了しました",{"$f":"IF(AT55=$AR$73,1,IF(BA71=$AR$70,1,0))","v":1},"OK"]
[null,null,null,null,null,null,null,null,null,null,null,null,null,null,null,null,null,null,null,null,null,null,null,null,null,null,null,null,null,null,null,null,null,null,null,null,null,null,null,null,null,null,null,"廃止",null,null,null,null,34,"AB23","固定資産税、都市計画課税","の","「通知書番号」を記入してください。",{"$f":"IF(AR53=$AR$73,1,IF(AB23<>\"\",1,0))","v":1},"OK"]
[null,null,null,null,null,null,null,null,null,null,null,null,null,null,null,null,null,null,null,null,null,null,null,null,null,null,null,null,null,null,null,null,null,null,null,null,null,null,null,null,null,null,"チェックボックス（チェックが入っていればTRUEと表示される）",null,null,null,null,null,35,"V24","軽自動車税","の","振替希望税目にチェックを記入してください。",{"$f":"IF(AR54=$AR$72,1,IF(AB26<>\"\",0,1))","v":1},"OK"]
[null,null,null,null,null,null,null,null,null,null,null,null,null,null,null,null,null,null,null,null,null,null,null,null,null,null,null,null,null,null,null,null,null,null,null,null,null,null,null,null,null,null,"V18",false,"AA18",false,null,null,36,"AB26","軽自動車税","の","「通知書番号」を記入してください。",{"$f":"IF(AR54=$AR$73,1,IF(AB26<>\"\",1,0))","v":1},"OK"]
["たつの市市税等口座振替依頼書兼解約届書",null,null,null,null,null,null,null,null,null,null,null,null,null,null,null,null,null,null,null,null,null,null,null,null,null,null,null,null,null,null,null,null,null,null,null,null,null,null,null,null,null,"V21",false,"AA19",false,null,null,37,"V27","国民健康保険税","の","振替希望税目にチェックを記入してください。",{"$f":"IF(AR55=$AR$72,1,IF(AND(AT56=$AR$73,AT57=$AR$73,AD27=\"\",AG27=\"\",AD28=\"\"),1,0))","v":1},"OK"]
[null,null,null,null,null,null,null,null,null,null,null,null,null,null,null,null,null,null,null,null,null,null,null,null,null,null,null,null,null,null,null,null,null,null,null,null,null,null,null,null,null,null,"V24",false,"AA21",false,null,null,38,"AA27,28","国民健康保険税","の","開始期間のどちらか又は両方にチェックを記入してください。",{"$f":"IF(AR55=$AR$73,1,IF(AND(AT56=$AR$73,AT57=$AR$73),0,1))","v":1},{"$f":"IF(BB54=1,\"OK\",\"記入誤り！　【\"&AY54&\"】\"&AZ54&BA54)","v":"OK"}]
[null,null,null,null,null,null,null,null,null,null,null,null,null,null,null,null,null,null,null,null,null,null,null,null,null,null,null,null,null,null,null,null,{"$f":"_xlfn.CONCAT(AC16:AM16)","v":"令和6年3月12日"},null,null,null,null,null,null,null,null,null,"V27",false,"AA22",false,null,null,39,"AA27","国民健康保険税（期別）","の","開始期間にチェックを記入してください。",{"$f":"IF(AR55=$AR$73,1,IF(AT56=$AR$72,1,IF(AD27<>\"\",0,IF(AG27<>\"\",0,1))))","v":1},"OK"]
["申込区分",null,null,null,"　　　　",{"$f":"IF(AR56=$AR$73,\"□\",\"■\")","v":"□"},"１　新規　",null,null,null,{"$f":"IF(AR57=$AR$73,\"□\",\"■\")","v":"□"},"２　解約",null,null,null,null,null,null,null,null,null,null,null,null,null,null,null,null,null,null,null,null,null,null,null,null,null,"※最短で提出月の翌月末から振替を開始します。",null,null,null,null,"F17",false,"AA27",false,null,null,40,"AD27","国民健康保険税","の","開始年度を記入してください。",{"$f":"IF(AT56=$AR$73,1,IF(AD27=\"\",0,1))","v":1},"OK"]
["納税義務者",null,"住所",null,"〒",{"$f":"IF(F18=\"\",\"\",F18)","v":""},null,null,null,null,null,null,null,null,null,null,null,null,null,null,null,{"$f":"IF(AR52=$AR$73,\"□\",\"■\")","v":"□"}," 市民税・県民税\n・森林環境税\n（普通徴収分）",null,null,null,{"$f":"IF(AT52=FALSE,\"□\",\"■\")","v":"□"},"令和",null,{"$f":"IF(AD18=0,\"\",AD18)","v":""},"年度",null,{"$f":"IF(AG18=0,\"\",AG18)","v":""},null,"から期別",null,null,null,null,null,null,null,"J17",false,"AA28",false,null,null,41,"AG27","国民健康保険税","の","期間（第○期）を選択してください。※AA24にチェックの場合",{"$f":"IF(AT56=$AR$72,IF(AG27<>\"\",1,0),1)","v":1},"OK"]
[null,null,null,null,{"$f":"IF(E19=\"\",\"\",E19)","v":""},null,null,null,null,null,null,null,null,null,null,null,null,null,null,null,null,null,null,null,null,null,{"$f":"IF(AT53=FALSE,\"□\",\"■\")","v":"□"},"令和",null,{"$f":"IF(AD19=0,\"\",AD19)","v":""},"年度から一括",null,null,null,null,null,null,null,null,null,null,null,"期別",null,null,null,null,null,42,"AG27","国民健康保険税","に","選択された”期間”の受付は終了しました",{"$f":"IF(AT56=$AR$73,1,IF(BA72=$AR$70,1,0))","v":1},"OK"]
[null,null,"氏名",null,{"$f":"IF(E20=\"\",\"\",E20)","v":""},null,null,null,null,null,null,null,null,null,null,null,null,null,null,null,null,null,"通知書番号",null,null,null,null,{"$f":"IF(AB20=\"\",\"\",AB20)","v":""},null,null,null,null,null,null,null,null,null,null,null,null,null,null,"ジャンル","市・県民税","固定","国保",null,null,43,"AA28","国民健康保険税（一括）","の","開始期間にチェックを記入してください。",{"$f":"IF(AR55=$AR$73,1,IF(AT57=$AR$72,1,IF(AD28<>\"\",0,1)))","v":1},{"$f":"IF(BB59=1,\"OK\",\"記入誤り！　【\"&AY59&\"】\"&AZ59&BA59)","v":"OK"}]
[null,null,null,null,null,null,null,null,null,null,null,null,null,null,null,null,null,null,null,null,null,{"$f":"IF(AR53=$AR$73,\"□\",\"■\")","v":"□"},"固定資産税",null,null,null,{"$f":"IF(AT54=FALSE,\"□\",\"■\")","v":"□"},"令和",null,{"$f":"IF(AD21=0,\"\",AD21)","v":""},"年度",null,{"$f":"IF(AG21=0,\"\",AG21)","v":""},null,"から期別",null,null,null,null,null,null,null,"選択肢",null,null,null,null,null,44,"AD28","国民健康保険税","の","開始年度を記入してください。※AA22にチェックの場合",{"$f":"IF(AT57=$AR$72,IF(AD28<>\"\",1,0),1)","v":1},"OK"]
["口座名義人",null,"住所",null,{"$f":"IF(E22=\"\",\"\",E22)","v":""},null,null,null,null,null,null,null,null,null,null,null,null,null,null,null,null,null,"都市計画税",null,null,null,{"$f":"IF(AT55=FALSE,\"□\",\"■\")","v":"□"},"令和",null,{"$f":"IF(AD22=0,\"\",AD22)","v":""},"年度から一括",null,null,null,null,null,null,null,null,null,null,null,null,"第1期","第1期","第1期",null,null,45,"AD28","国民健康保険税","に","記入された”年度”の受付は終了しました",{"$f":"IF(AT57=$AR$73,1,IF(BA73=$AR$70,1,0))","v":1},"OK"]
[null,null,null,null,null,null,null,null,null,null,null,null,null,null,null,null,null,null,null,null,null,null,"通知書番号",null,null,null,null,{"$f":"IF(AB23=\"\",\"\",AB23)","v":""},null,null,null,null,null,null,null,null,null,null,null,null,null,null,null,"第2期","第2期","第2期",null,null,46,"AB29","国民健康保険税","の","「通知書番号」を記入してください。",{"$f":"IF(AR55=$AR$73,1,IF(AB29<>\"\",1,0))","v":1},{"$f":"IF(BB62=1,\"OK\",\"記入誤り！　【\"&AY62&\"】\"&AZ62&BA62)","v":"OK"}]
[null,null,"電話",null,{"$f":"IF(E24=\"\",\"\",E24)","v":""},null,null,null,null,null,null,null,null,null,null,null,null,null,null,null,null,{"$f":"IF(AR54=$AR$73,\"□\",\"■\")","v":"□"}," 軽自動車税",null,null,null,"翌年度から納税義務者名義の\nすべての車両について適用",null,null,null,null,null,null,null,null,null,null,null,null,null,null,null,null,"第3期","第3期","第3期"]
[null,null,"ﾌﾘｶﾞﾅ",null,{"$f":"IF(E25=\"\",\"\",E25)","v":""},null,null,null,null,null,null,null,null,null,null,null,null,null,null,null,null,null,"（種別割)",null,null,null,null,null,null,null,null,null,null,null,null,null,null,null,null,null,null,null,null,"第4期","第4期","第4期",null,null,null,null,null,null,"チェックの結果、正なら\"1\"、誤りなら\"0\"と表示。すべて正しければ合計46になる。→",{"$f":"SUM(BB17:BB63)","v":33}]
[null,null,null,null,null,null,null,null,null,null,null,null,null,null,null,null,null,null,null,null,null,null,"通知書番号",null,null,null,null,{"$f":"IF(AB26=\"\",\"\",AB26)","v":""},null,null,null,null,null,null,null,null,null,null,null,null,null,null,null,null,null,"第5期"]
[null,null,null,null,null,null,null,null,null,null,null,null,null,null,null,null,null,null,null,null,null,{"$f":"IF(AR55=$AR$73,\"□\",\"■\")","v":"□"}," 国民健康\n保険税",null,null,null,{"$f":"IF(AT56=FALSE,\"□\",\"■\")","v":"□"},"令和",null,{"$f":"IF(AD27=0,\"\",AD27)","v":""},"年度",null,{"$f":"IF(AG27=0,\"\",AG27)","v":""},null,"から期別",null,null,null,null,null,null,null,null,null,null,"第6期",null,"期間チェック",null,null,null,"受付可能か？"]
[null,null,"氏名",null,{"$f":"IF(E28=\"\",\"\",E28)","v":""},null,null,null,null,null,null,null,null,null,null,null,null,null,null,null,null,null,"（普通徴収分）",null,null,null,{"$f":"IF(AT57=FALSE,\"□\",\"■\")","v":"□"},"令和",null,{"$f":"IF(AD28=0,\"\",AD28)","v":""},"年度から一括",null,null,null,null,null,null,null,null,null,null,null,null,null,null,"第7期",null,null,"年","期","振込又は廃止","年度チェック","期別チェック",null,null,{"$f":"IFERROR(VLOOKUP(0,$BB$17:$BC$63,2,FALSE),\"\")","v":"記入誤り！　【申込区分】はどちらかにチェックを記入してください。"}]
[null,null,null,null,null,null,null,null,null,null,null,null,null,null,null,null,null,null,null,null,null,null,"通知書番号",null,null,null,null,{"$f":"IF(AB29=\"\",\"\",AB29)","v":""},null,null,null,null,null,null,null,null,null,null,null,null,null,null,null,null,null,"第8期",null,"市県民税",{"$f":"IF(AD18=\"\",\"\",AD18)","v":""},{"$f":"IF(AG18=\"\",\"\",AG18)","v":""},{"$f":"$AR$48","v":false},{"$f":"IF(AND(AW68>=納税課用・修正シート!$D$4,AW68<>\"\"),$AR$70,$AR$71)","v":"×"},{"$f":"IF(AZ68=$AR$71,$AR$71,IF(AW68>納税課用・修正シート!$D$4,$AR$70,IF(AX68=$AR$61,IF(AY68=$AR$49,②納税カレンダー!K20,②納税カレンダー!L20),IF(AX68=$AR$62,IF(AY68=$AR$49,②納税カレンダー!K21,②納税カレンダー!L21),IF(AX68=$AR$63,IF(AY68=$AR$49,②納税カレンダー!K22,②納税カレンダー!L22),IF(AX68=$AR$64,IF(AY68=$AR$49,②納税カレンダー!K23,②納税カレンダー!L23)))))))","v":"×"},null,null,"↑エラーメッセージ↑"]
["金融機関",null,"金融機関コード",null,null,null,null,"支店コード",null,"預貯金種別",null,null,null,"口座番号（右づめ）",null,null,null,null,null,null,null,"　当店に上記口座名義人の預金口座を確認し、預金口座振替依頼書兼解約届書を受理しました。",null,null,null,null,null,null,null,null,null,null,null,null,null,null,null,null,null,null,null,null,"○と×、TRUEとFALSE、受付終了",null,null,null,null,"（全期）",{"$f":"IF(AD19=\"\",\"\",AD19)","v":""},"-",{"$f":"$AR$48","v":false},{"$f":"IF(AND(AW69>=納税課用・修正シート!$D$4,AW69<>\"\"),$AR$70,$AR$71)","v":"×"},{"$f":"IF(AZ69=$AR$71,$AR$71,IF(AW69>納税課用・修正シート!$D$4,$AR$70,IF(AY69=$AR$49,②納税カレンダー!K20,②納税カレンダー!L20)))","v":"×"}]
[null,null,{"$f":"IF(C31=\"\",\"\",C31)","v":""},{"$f":"IF(D31=\"\",\"\",D31)","v":""},{"$f":"IF(E31=\"\",\"\",E31)","v":""},{"$f":"IF(F31=\"\",\"\",F31)","v":""},{"$f":"IFERROR(G31,\"\")","v":"-"},{"$f":"IFERROR(H31,\"\")","v":"-"},{"$f":"IFERROR(I31,\"\")","v":"-"},{"$f":"IF(J31=\"\",\"\",J31)","v":""},null,null,null,{"$f":"IF(N31=\"\",\"\",N31)","v":""},null,null,null,null,null,null,null,null,null,null,null,null,null,null,null,null,null,null,null,null,null,null,null,null,null,null,null,null,"選択肢","○",null,null,null,"固定資産・都市計画",{"$f":"IF(AD21=\"\",\"\",AD21)","v":""},{"$f":"IF(AG21=\"\",\"\",AG21)","v":""},false,{"$f":"IF(AND(AW70>=納税課用・修正シート!$D$4,AW70<>\"\"),$AR$70,$AR$71)","v":"×"},{"$f":"IF(AZ70=$AR$71,$AR$71,IF(AW70>納税課用・修正シート!$D$4,$AR$70,IF(AX70=$AS$61,IF(AY70=$AR$49,②納税カレンダー!M20,②納税カレンダー!N20),IF(AX70=$AS$62,IF(AY70=$AR$49,②納税カレンダー!M21,②納税カレンダー!N21),IF(AX70=$AS$63,IF(AY70=$AR$49,②納税カレンダー!M22,②納税カレンダー!N22),IF(AX70=$AS$64,IF(AY70=$AR$49,②納税カレンダー!M23,②納税カレンダー!N23)))))))","v":"×"}]
[null,null,null,null,null,null,null,null,null,null,null,null,null,null,null,null,null,null,null,null,null,"注意事項\n振替日は、各納期日とします。ただし、振替日（払込日）が休業日の場合は翌営業日となります。",null,null,null,null,null,null,null,null,null,null,null,null,null,null,null,null,null,null,null,null,null,"×",null,null,null,"（全期）",{"$f":"IF(AD22=\"\",\"\",AD22)","v":""},"-",false,{"$f":"IF(AND(AW71>=納税課用・修正シート!$D$4,AW71<>\"\"),$AR$70,$AR$71)","v":"×"},{"$f":"IF(AZ71=$AR$71,$AR$71,IF(AW71>納税課用・修正シート!$D$4,$AR$70,IF(AY71=$AR$49,②納税カレンダー!M20,②納税カレンダー!N20)))","v":"×"}]
[null,null,"名称",{"$f":"IF(D33=\"\",\"\",D33)","v":""},null,null,null,null,null,null,null,"支店名",{"$f":"IF(M33=\"\",\"\",M33)","v":""},null,null,null,null,null,null,null,null,null,null,null,null,null,null,null,null,null,null,null,null,null,null,null,null,null,null,null,null,null,null,true,null,null,null,"国民健康保険税",{"$f":"IF(AD27=\"\",\"\",AD27)","v":""},{"$f":"IF(AG27=\"\",\"\",AG27)","v":""},false,{"$f":"IF(AND(AW72>=納税課用・修正シート!$D$4,AW72<>\"\"),$AR$70,$AR$71)","v":"×"},{"$f":"IF(AZ72=$AR$71,$AR$71,IF(AW72>納税課用・修正シート!$D$4,$AR$70,IF(AX72=AT61,IF(AY72=AR49,②納税カレンダー!Q20,②納税カレンダー!R20),IF(AX72=AT62,IF(AY72=AR49,②納税カレンダー!Q21,②納税カレンダー!R21),IF(AX72=AT63,IF(AY72=AR49,②納税カレンダー!Q22,②納税カレンダー!R22),IF(AX72=AT64,IF(AY72=AR49,②納税カレンダー!Q23,②納税カレンダー!R23),IF(AX72=AT65,IF(AY72=AR49,②納税カレンダー!Q24,②納税カレンダー!R24),IF(AX72=AT66,IF(AY72=AR49,②納税カレンダー!Q25,②納税カレンダー!R25),IF(AX72=AT67,IF(AY72=AR49,②納税カレンダー!Q26,②納税カレンダー!R26),IF(AX72=AT68,IF(AY72=AR49,②納税カレンダー!Q27,②納税カレンダー!R27)))))))))))","v":"×"}]
[null,null,null,null,null,null,null,null,null,null,null,null,null,null,null,null,null,null,null,null,null,null,null,null,"備考欄",null,null,null,null,"市役所日附印",null,null,null,null,"取扱店日附印",null,null,null,null,null,null,null,null,false,null,null,null,"（全期）",{"$f":"IF(AD28=\"\",\"\",AD28)","v":""},"-",false,{"$f":"IF(AND(AW73>=納税課用・修正シート!$D$4,AW73<>\"\"),$AR$70,$AR$71)","v":"×"},{"$f":"IF(AZ73=$AR$71,$AR$71,IF(AW73>納税課用・修正シート!$D$4,$AR$70,IF(AY73=AR49,②納税カレンダー!Q20,②納税カレンダー!R20)))","v":"×"}]
[null,null,null,null,null,null,null,null,null,null,null,null,null,null,null,null,null,null,null,null,null,null,null,null,null,null,null,null,null,null,null,null,null,null,null,null,null,null,null,null,null,null,null,"受付は終了しました"]
[null,null,null,null,null,null,null,null,null,null,null,null,null,null,null,null,null,null,null,null,null,null,null,null,null,null,null,null,null,null,null,null,null,null,null,null,null,null,null,null,null,null,"フリガナに小文字はないか"]
["整理\n番号",null,null,null,null,null,null,null,null,null,null,null,null,null,null,null,null,null,null,null,null,null,null,null,null,null,null,null,null,null,null,null,null,null,null,null,null,null,null,null,null,null,"全角","問題なければ○、ダメなら×","半角","問題なければ○、ダメなら×"]
[null,null,null,null,null,null,null,null,null,null,null,null,null,null,null,null,null,null,null,null,null,null,null,null,null,null,null,null,null,null,null,null,null,null,null,null,null,null,null,null,null,null,"ァ",{"$f":"IF(ISNUMBER(FIND(AQ77,$E$25)),$AR$71,$AR$70)","v":"○"},{"$f":"ASC(AQ77)","v":"ｧ"},{"$f":"IF(ISNUMBER(FIND(AS77,$E$25)),$AR$71,$AR$70)","v":"○"}]
["（取扱金融機関→たつの市納税課）",null,null,null,null,null,null,null,null,null,null,null,null,null,null,null,null,null,null,null,null,null,null,null,null,null,null,null,null,null,null,null,null,null,null,null,null,null,null,null,null,null,"ィ","○",{"$f":"ASC(AQ78)","v":"ｨ"},"○"]
[null,null,null,null,null,null,null,null,null,null,null,null,null,null,null,null,null,null,null,null,null,null,null,null,null,null,null,null,null,null,null,null,null,null,null,null,null,null,null,null,null,null,"ゥ","○","ｩ","○"]
["市\n確認用",null,"〒",{"$f":"F57","v":""},null,null,null,null,null,null,null,null,null,null,null,null,null,null,null,null,null,null,null,null,null,null,null,null,null,null,null,null,null,null,null,null,null,null,null,null,null,null,"ェ","○","ｪ","○"]
[null,null,{"$f":"E58","v":""},null,null,null,null,null,null,null,null,null,null,null,null,null,null,null,null,null,null,null,null,null,null,null,null,null,null,null,null,null,null,null,null,null,null,null,null,null,null,null,"ォ","○","ｫ","○"]
[null,null,{"$f":"E59","v":""},null,null,null,null,null,null,null,null,null,null,null,null,null,null,null,null,null,null,null,null,null,null,null,null,null,null,null,null,null,null,null,null,null,null,null,null,null,null,null,"ャ","○","ｬ","○"]
[null,"☑",null,"「お客様控え」の送付先は「納税義務者」の住所、氏名でよろしいですか？",null,null,null,null,null,null,null,null,null,null,null,null,null,null,null,null,null,null,null,null,null,null,null,null,null,null,null,null,null,null,null,null,null,null,null,null,null,null,"ュ","○","ｭ","○"]
[null,null,null,"※異なる場合は余白部に送付先を記載いただくこと",null,null,null,null,null,null,null,null,null,null,null,null,null,null,null,null,null,null,null,null,null,null,null,null,null,null,null,null,null,null,null,null,null,null,null,null,null,null,"ョ","○","ｮ","○"]
[null,null,null,null,null,null,null,null,null,null,null,null,null,null,null,null,null,null,null,null,null,null,null,null,null,null,null,null,null,null,null,null,null,null,null,null,null,null,null,null,null,null,"ヵ","○"]
["たつの市市税等口座振替依頼書兼解約届書（お客様控え）",null,null,null,null,null,null,null,null,null,null,null,null,null,null,null,null,null,null,null,null,null,null,null,null,null,null,null,null,null,null,null,null,null,null,null,null,null,null,null,null,null,"ヶ","○"]
[null,null,null,null,null,null,null,null,null,null,null,null,null,null,null,null,null,null,null,null,null,null,null,null,null,null,null,null,null,null,null,null,null,null,null,null,null,null,null,null,null,null,"ッ","○","ｯ",{"$f":"IF(ISNUMBER(FIND(AS87,$E$25)),$AR$71,$AR$70)","v":"○"}]
[null,null,null,null,null,null,null,null,null,null,null,null,null,null,null,null,null,null,null,null,null,null,null,null,null,null,null,null,null,null,null,null,{"$f":"AG55","v":"令和6年3月12日"},null,null,null,null,null,null,null,null,null,"ヮ","○"]
["申込区分",null,null,null,"　　　　",{"$f":"F56","v":"□"},"１　新規　",null,null,null,{"$f":"K56","v":"□"},"２　解約",null,null,null,null,null,null,null,null,null,null,null,null,null,null,null,null,null,null,null,null,null,null,null,null,null,"※最短で提出月の翌月末から振替を開始します。",null,null,null,null,"×の個数",{"$f":"COUNTIF(AR77:AR88,AR71)","v":0},"×の個数",{"$f":"COUNTIF(AT77:AT88,AR71)","v":0}]
["納税義務者",null,"住所",null,"〒",{"$f":"F57","v":""},null,null,null,null,null,null,null,null,null,null,null,null,null,null,null,{"$f":"V57","v":"□"}," 市民税・県民税\n・森林環境税\n（普通徴収分）",null,null,null,{"$f":"AA57","v":"□"},"令和",null,{"$f":"AD57","v":""},"年度",null,{"$f":"AG57","v":""},null,"から期別",null,null,null,null,null,null,null,"念のため、ひらがなも"]
[null,null,null,null,{"$f":"E58","v":""},null,null,null,null,null,null,null,null,null,null,null,null,null,null,null,null,null,null,null,null,null,{"$f":"AA58","v":"□"},"令和",null,{"$f":"AD58","v":""},"年度から一括",null,null,null,null,null,null,null,null,null,null,null,"全角","問題なければ○、ダメなら×"]
[null,null,"氏名",null,{"$f":"E59","v":""},null,null,null,null,null,null,null,null,null,null,null,null,null,null,null,null,null,"通知書番号",null,null,null,null,{"$f":"AB59","v":""},null,null,null,null,null,null,null,null,null,null,null,null,null,null,"ぁ",{"$f":"IF(ISNUMBER(FIND(AQ92,$E$25)),$AR$71,$AR$70)","v":"○"}]
[null,null,null,null,null,null,null,null,null,null,null,null,null,null,null,null,null,null,null,null,null,{"$f":"V60","v":"□"},"固定資産税",null,null,null,{"$f":"AA60","v":"□"},"令和",null,{"$f":"AD60","v":""},"年度",null,{"$f":"AG60","v":""},null,"から期別",null,null,null,null,null,null,null,"ぃ","○"]
["口座名義人",null,"住所",null,{"$f":"E61","v":""},null,null,null,null,null,null,null,null,null,null,null,null,null,null,null,null,null,"都市計画税",null,null,null,{"$f":"AA61","v":"□"},"令和",null,{"$f":"AD61","v":""},"年度から一括",null,null,null,null,null,null,null,null,null,null,null,"ぅ","○"]
[null,null,null,null,null,null,null,null,null,null,null,null,null,null,null,null,null,null,null,null,null,null,"通知書番号",null,null,null,null,{"$f":"AB62","v":""},null,null,null,null,null,null,null,null,null,null,null,null,null,null,"ぇ","○"]
[null,null,"電話",null,{"$f":"E63","v":""},null,null,null,null,null,null,null,null,null,null,null,null,null,null,null,null,{"$f":"V63","v":"□"}," 軽自動車税",null,null,null,"翌年度から納税義務者名義の\nすべての車両について適用",null,null,null,null,null,null,null,null,null,null,null,null,null,null,null,"ぉ","○"]
[null,null,"ﾌﾘｶﾞﾅ",null,{"$f":"E64","v":""},null,null,null,null,null,null,null,null,null,null,null,null,null,null,null,null,null,"（種別割)",null,null,null,null,null,null,null,null,null,null,null,null,null,null,null,null,null,null,null,"ゃ","○"]
[null,null,null,null,null,null,null,null,null,null,null,null,null,null,null,null,null,null,null,null,null,null,"通知書番号",null,null,null,null,{"$f":"AB65","v":""},null,null,null,null,null,null,null,null,null,null,null,null,null,null,"ゅ","○"]
[null,null,null,null,null,null,null,null,null,null,null,null,null,null,null,null,null,null,null,null,null,{"$f":"V66","v":"□"}," 国民健康\n保険税",null,null,null,{"$f":"AA66","v":"□"},"令和",null,{"$f":"AD66","v":""},"年度",null,{"$f":"AG66","v":""},null,"から期別",null,null,null,null,null,null,null,"ょ","○"]
[null,null,"氏名",null,{"$f":"E67","v":""},null,null,null,null,null,null,null,null,null,null,null,null,null,null,null,null,null,"（普通徴収分）",null,null,null,{"$f":"AA67","v":"□"},"令和",null,{"$f":"AD67","v":""},"年度から一括",null,null,null,null,null,null,null,null,null,null,null,"っ","○"]
[null,null,null,null,null,null,null,null,null,null,null,null,null,null,null,null,null,null,null,null,null,null,"通知書番号",null,null,null,null,{"$f":"AB68","v":""},null,null,null,null,null,null,null,null,null,null,null,null,null,null,"×の個数",{"$f":"COUNTIF(AR92:AR100,AR71)","v":0},"×合計",{"$f":"AR89+AT89+AR101","v":0}]
["金融機関",null,"金融機関コード",null,null,null,null,"支店コード",null,"預貯金種別",null,null,null,"口座番号（右づめ）",null,null,null,null,null,null,null,"※口座振替の開始期別の記載がない場合は、受付から直近の期別納付で振替を開始します。",null,null,null,null,null,null,null,null,null,null,null,null,null,null,null,null,null,null,null,null,null,null,{"$f":"ASC(AQ102)","v":""}]
[null,null,{"$f":"C70","v":""},{"$f":"D70","v":""},"","","-","-","-",{"$f":"J70","v":""},null,null,null,{"$f":"N70","v":""},null,null,null,null,null,null,null,"\n※年度途中での一括納付をお申込みの場合は、翌年度からの一括振替となります。"]
[null,null,null,null,null,null,null,null,null,null,null,null,null,null,null,null,null,null,null,null,null,"注意事項"]
[null,null,"名称",{"$f":"D72","v":""},null,null,null,null,null,null,null,"支店名",{"$f":"M72","v":""},null,null,null,null,null,null,null,null,"・振替開始までは、お手持ちの納付書で納めてください。\n・振替日は、各納期限日とします。ただし、振替日が \n　休業日の場合は翌営業日となります。"]
[]
[null,null,null,null,null,null,null,null,null,null,null,null,null,null,null,null,null,null,null,null,null,null,null,null,null,null,null,null,null,"市役所日附印",null,null,null,null,"取扱店日附印"]
["　  私が支払うべき市税等について、たつの市から通知があったときは、口座振替により納付をしたいので、下記の確約事項を確認のうえ、市が指定する振替日に上記のとおりたつの市口座へ振込みを依頼します。"]
[]
[]
[null,null,null,null,null,null,null,null,null,null,null,null,null,null,null,null,null,null,"（納税者控）"]
[]
[null,"【ご注意】"]
[null,null,"※一括納付を申し込んだ方で、残高不足等により第１期の振替日に口座振替ができなかった場合、その年度は、期別納付に切り替"]
[null,null," 　えて口座振替を行います。"]
[null,null,"※口座振替済通知書は送付しません。口座振替の結果については、預貯金通帳で確認してください。"]
[null,null,"※継続検査窓口での納税証明書の提示が原則不要になったことにより、車検を必要とする車両の納税証明書（継続検査用）は送付しません。"]
[null,null,"※口座振替を開始した後、口座名義人が亡くなられたときは、該当税目の振替口座の登録を解除します。また、残高不足等により連続して口座"]
[null,null,"　 振替ができないときは、口座振替の取扱いを廃止する場合があります。"]
[null,null,"※市税等の過誤納金が発生した場合は、該当税目の振替口座へ還付します。"]
[null,null,"※固定資産税・都市計画税は、売買や相続等で所有者が変わったときや共有者を変更したときは、再度申込みが必要となります。"]
[null,"確約事項"]
[null,null,1,"普通預金又は当座預金の約定にかかわらず、小切手の振出し又は普通預金通帳及び預金払戻請求書等の提出は省略させてください。"]
[null,null,2,"この口座振替契約は、貴店並びにたつの市が必要と認めた場合には、私に通知することなく解除されても異議はありません。"]
[null,null,3,"私の都合により、この取扱いを解約・変更するときは、直ちに貴店並びにたつの市へ届出をします。"]
[null,null,4,"この取扱いについて紛議が生じても、貴店並びにたつの市に迷惑をかけません。"]
[null,"問い合わせ先",null,null,null,"〒６７９－４１９２　たつの市龍野町富永１００５番地１　たつの市総務部納税課管理係　　☎０７９１（６４）３１４４"]

{"sheet":"④印刷後の手引き","index":3,"n_rows":34,"n_cols":3,"rows_kept":34,"cut":false,"hidden":false,"merged":[[33,0,34,10],[9,2,10,10],[24,2,27,10],[29,2,31,10],[0,0,2,10]]}
["印刷後の手引き"]
[]
[]
[]
["書類を提出する前に、ご確認ください。"]
[]
[]
[]
[null,"１","お届け印を押印しましたか？"]
[null,null,"１／３枚目、金融機関用の依頼書兼解約届書の１か所のみ"]
[]
[]
[]
[]
[]
[]
[]
[]
[]
[]
[]
[]
[]
[null,"２","記入誤りはありませんか？"]
[null,null,"※印刷後に記入誤りが分かった場合、二重線を引いていただき、二重線の上に訂正印を３枚それぞれに押印してください。また、お届け印が不鮮明な場合は、お届け印押印欄の近くに再度お届け印を押印してください。"]
[]
[]
[]
[]
[null,"３","印刷された３枚すべてを金融機関に持参してください。"]
[]
[]
[]
["※解約の場合は、たつの市納税課もしくは各総合支所地域振興課の窓口に持参してください。"]

{"sheet":"記入例","index":4,"n_rows":26,"n_cols":39,"rows_kept":26,"cut":false,"hidden":true,"merged":[[1,0,1,38],[3,0,3,15],[3,28,3,29],[3,30,3,31],[3,33,3,34],[3,36,3,37],[8,32,8,33],[9,30,9,36],[9,27,9,28],[4,0,4,3],[5,0,8,1],[5,2,6,3],[5,5,5,9],[5,10,5,19],[5,21,6,21],[6,4,6,19],[7,2,8,3],[7,4,8,19],[5,22,5,25],[7,22,7,26],[8,21,9,21],[8,22,8,25],[5,37,6,38],[6,22,6,25],[6,27,6,28],[10,22,10,26],[10,27,10,37],[9,22,9,25],[7,27,7,37],[8,34,8,36],[8,37,9,38],[6,30,6,36],[5,27,5,28],[5,30,5,31],[5,32,5,33],[5,34,5,36],[8,27,8,28],[8,30,8,31],[11,2,11,3],[9,0,16,1],[9,2,10,3],[9,4,10,16],[9,17,9,19],[11,4,11,16],[15,2,16,3],[12,2,14,3],[10,17,14,19],[11,21,12,21],[11,22,11,25],[11,26,12,36],[11,37,12,38],[12,4,14,16],[12,22,12,25],[13,22,13,26],[13,27,13,37],[14,37,15,38],[15,4,16,19],[15,22,15,25],[15,27,15,28],[15,30,15,36],[16,22,16,26],[16,27,16,37],[14,21,15,21],[14,22,14,25],[14,27,14,28],[14,30,14,31],[14,32,14,33],[14,34,14,36],[17,0,22,1],[17,2,17,5],[17,9,17,12],[17,13,17,19],[20,2,22,2],[17,21,17,38],[18,2,19,2],[18,3,19,3],[18,4,19,4],[18,5,19,5],[18,6,19,6],[21,34,21,38],[18,7,19,7],[18,8,19,8],[18,9,19,12],[18,13,19,19],[18,21,18,38],[19,21,20,38],[20,3,22,10],[20,11,22,11],[20,12,22,19],[21,29,21,33]]}
[]
["たつの市市税等口座振替依頼書兼解約届書"]
[]
[null,null,null,null,null,null,null,null,null,null,null,null,null,null,null,null,null,null,null,null,null,null,null,null,null,null,null,null,"令和",null,"○",null,"年","○",null,"月","○",null,"日"]
["申込区分",null,null,null,null,"☑","１　新規",null,null,"□","２　解約",null,null,null,null,null,null,null,null,null,null,null,null,null,null,null,null,null,null,null,null,null,null,null,null,null,null,"※最短で提出月の翌月末から振替を開始します。"]
["納税義務者",null,"住所",null,"〒","679-4192",null,null,null,null,null,null,null,null,null,null,null,null,null,null,null,"☑"," 市 ・ 県 民 税",null,null,null,"☑","令和",null,5,"年度",null,"第○期",null,"から期別"]
[null,null,null,null,"たつの市龍野町富永1005番地1",null,null,null,null,null,null,null,null,null,null,null,null,null,null,null,null,null,"（普通徴収分）",null,null,null,"□","令和",null,null,"年度から一括"]
[null,null,"氏名",null,"龍野　さくら",null,null,null,null,null,null,null,null,null,null,null,null,null,null,null,null,null,"通知書番号",null,null,null,null,123456789]
[null,null,null,null,null,null,null,null,null,null,null,null,null,null,null,null,null,null,null,null,null,"☑","固定資産税",null,null,null,"□","令和",null,null,"年度",null,null,null,"から期別"]
["口座名義人",null,"住所",null,"たつの市龍野町富永1005番地1",null,null,null,null,null,null,null,null,null,null,null,null,"お届け印",null,null,null,null,"都市計画税",null,null,null,"☑","令和",null,5,"年度から一括"]
[null,null,null,null,null,null,null,null,null,null,null,null,null,null,null,null,null,null,null,null,null,null,"通知書番号",null,null,null,null,123456789]
[null,null,"電話",null,"0791-64-3144",null,null,null,null,null,null,null,null,null,null,null,null,null,null,null,null,"☑"," 軽自動車税",null,null,null,"翌年度から納税義務者名義の\nすべての車両について適用"]
[null,null,"ﾌﾘｶﾞﾅ",null,"ﾀﾂﾉ ｻｸﾗ",null,null,null,null,null,null,null,null,null,null,null,null,null,null,null,null,null,"（種別割)"]
[null,null,null,null,null,null,null,null,null,null,null,null,null,null,null,null,null,null,null,null,null,null,"通知書番号",null,null,null,null,123456789]
[null,null,null,null,null,null,null,null,null,null,null,null,null,null,null,null,null,null,null,null,null,"☑"," 国民健康\n保険税",null,null,null,"☑","令和",null,5,"年度",null,"第○期",null,"から期別"]
[null,null,"氏名",null,"龍野　さくら",null,null,null,null,null,null,null,null,null,null,null,null,null,null,null,null,null,"（普通徴収分）",null,null,null,"□","令和",null,null,"年度から一括"]
[null,null,null,null,null,null,null,null,null,null,null,null,null,null,null,null,null,null,null,null,null,null,"通知書番号",null,null,null,null,123456789]
["金融機関",null,"金融機関コード",null,null,null,null,"支店コード",null,"預貯金種別",null,null,null,"口座番号（右づめ）",null,null,null,null,null,null,null,"※口座振替の開始期別の記載がない場合は、受付から直近の期別納付で振替を開始します。"]
[null,null,0,0,0,0,0,0,0,"普通(総合）",null,null,null,123456,null,null,null,null,null,null,null,"\n※年度途中での一括納付をお申込みの場合は、翌年度からの一括振替となります。"]
[null,null,null,null,null,null,null,null,null,null,null,null,null,null,null,null,null,null,null,null,null,"私が支払うべき市税等について、たつの市から通知があったときは、口座振替により納付をしたいので、下記の確約事項を確認のうえ、市が指定する振替日に上記のとおりたつの市口座へ振込みを依頼します。"]
[null,null,"名称","○○銀行",null,null,null,null,null,null,null,"支店名","○○支店"]
[null,null,null,null,null,null,null,null,null,null,null,null,null,null,null,null,null,null,null,null,null,null,null,null,null,null,null,null,null,"市役所日附印",null,null,null,null,"取扱店日附印"]
[]
[null,"　 "]
[]
[null,null,null,null,null,null,null,null,null,null,null,null,null,null,null,null,null,null,"（金融機関用）"]

{"sheet":"取扱金融機関","index":5,"n_rows":537,"n_cols":42,"rows_kept":537,"cut":false,"hidden":true,"merged":[]}
["取扱金融機関名","コード","取扱金融機関コード",null,null,null,"三井住友銀行",null,null,"みなと銀行",null,null,"トマト銀行",null,null,"姫路信用金庫",null,null,"播州信用金庫",null,null,"兵庫信用金庫",null,null,"西兵庫信用金庫",null,null,"兵庫県医療信用組合",null,null,"兵庫県信用組合",null,null,"兵庫西農業協同組合",null,null,"なぎさ信用漁業協同連合会",null,null,"ゆうちょ銀行"]
["三井住友銀行","0009","コード1","コード2","コード3","コード4","支店名","支店名カナ","支店コード","支店名","支店名カナ","支店コード","支店名","支店名カナ","支店コード","支店名","支店名カナ","支店コード","支店名","支店名カナ","支店コード","支店名","支店名カナ","支店コード","支店名","支店名カナ","支店コード","支店名","支店名カナ","支店コード","支店名","支店名カナ","支店コード","支店名","支店名カナ","支店コード","支店名","支店名カナ","支店コード","支店名","支店名カナ","支店コード"]
["みなと銀行","0562",{"$f":"IF(③記入様式!$D$33=$A$2,LEFT($B$2,1),IF(③記入様式!$D$33=$A$3,LEFT($B$3,1),IF(③記入様式!$D$33=$A$4,LEFT($B$4,1),IF(③記入様式!$D$33=$A$5,LEFT($B$5,1),IF(③記入様式!$D$33=$A$6,LEFT($B$6,1),IF(③記入様式!$D$33=$A$7,LEFT($B$7,1),IF(③記入様式!$D$33=$A$8,LEFT($B$8,1),IF(③記入様式!$D$33=$A$9,LEFT($B$9,1),IF(③記入様式!$D$33=$A$10,LEFT($B$10,1),IF(③記入様式!$D$33=$A$11,LEFT($B$11,1),IF(③記入様式!$D$33=$A$12,LEFT($B$12,1),\"\")))))))))))","v":""},{"$f":"IF(③記入様式!$D$33=$A$2,MID($B$2,2,1),IF(③記入様式!$D$33=$A$3,MID($B$3,2,1),IF(③記入様式!$D$33=$A$4,MID($B$4,2,1),IF(③記入様式!$D$33=$A$5,MID($B$5,2,1),IF(③記入様式!$D$33=$A$6,MID($B$6,2,1),IF(③記入様式!$D$33=$A$7,MID($B$7,2,1),IF(③記入様式!$D$33=$A$8,MID($B$8,2,1),IF(③記入様式!$D$33=$A$9,MID($B$9,2,1),IF(③記入様式!$D$33=$A$10,MID($B$10,2,1),IF(③記入様式!$D$33=$A$11,MID($B$11,2,1),IF(③記入様式!$D$33=$A$12,MID($B$12,2,1),\"\")))))))))))","v":""},{"$f":"IF(③記入様式!$D$33=$A$2,MID($B$2,3,1),IF(③記入様式!$D$33=$A$3,MID($B$3,3,1),IF(③記入様式!$D$33=$A$4,MID($B$4,3,1),IF(③記入様式!$D$33=$A$5,MID($B$5,3,1),IF(③記入様式!$D$33=$A$6,MID($B$6,3,1),IF(③記入様式!$D$33=$A$7,MID($B$7,3,1),IF(③記入様式!$D$33=$A$8,MID($B$8,3,1),IF(③記入様式!$D$33=$A$9,MID($B$9,3,1),IF(③記入様式!$D$33=$A$10,MID($B$10,3,1),IF(③記入様式!$D$33=$A$11,MID($B$11,3,1),IF(③記入様式!$D$33=$A$12,MID($B$12,3,1),\"\")))))))))))","v":""},{"$f":"IF(③記入様式!$D$33=$A$2,MID($B$2,4,1),IF(③記入様式!$D$33=$A$3,MID($B$3,4,1),IF(③記入様式!$D$33=$A$4,MID($B$4,4,1),IF(③記入様式!$D$33=$A$5,MID($B$5,4,1),IF(③記入様式!$D$33=$A$6,MID($B$6,4,1),IF(③記入様式!$D$33=$A$7,MID($B$7,4,1),IF(③記入様式!$D$33=$A$8,MID($B$8,4,1),IF(③記入様式!$D$33=$A$9,MID($B$9,4,1),IF(③記入様式!$D$33=$A$10,MID($B$10,4,1),IF(③記入様式!$D$33=$A$11,MID($B$11,4,1),IF(③記入様式!$D$33=$A$12,MID($B$12,4,1),\"\")))))))))))","v":""},"龍野支店","タツノ","463","龍野支店","タツノ","346","龍野支店","タツノ","037","龍野支店","タツノシテン","009","龍野支店","ﾀﾂﾉ","045","御津支店","ﾐﾂ","012","新宮支店","ｼﾝｸﾞｳ","007","尼崎支店","ｱﾏｶﾞｻｷ","002","龍野支店","ﾀﾂﾉ",420,"揖西支店","ｲﾂｻｲ",333,"明石支店","ｱｶｼ","040","四三八","ﾖﾝｻﾝﾊﾁ",438]
["トマト銀行","0566",null,null,null,null,"ＳＭＢＣ日興証券支店","ＳＭＢＣニツコウシヨウケン","928","相生支店","アイオイ","465","青江支店","アオエ","050","相生支店","アイオイシテン","013","相生支店","ｱｲｵｲ","017","新宮支店","ｼﾝｸﾞｳ","043","龍野支店","ﾀﾂﾉ","018","西宮支店","ﾆｼﾉﾐﾔ","004","新宮支店","ｼﾝｸﾞｳ",430,"揖保支店","ｲﾎﾞ",335,"有田支店","ｱﾘﾀﾞ",520,"〇〇八","ｾﾞﾛｾﾞﾛﾊﾁ","008"]
["姫路信用金庫","1685","支店コード",null,null,null,"アオイ支店","アオイ","969","明石支店","アカシ","084","赤磐支店","アカイワ","077","青山支店","アオヤマシテン","022","青山支店","ｱｵﾔﾏ","046","相生支店","ｱｲｵｲ","022","相生支店","ｱｲｵｲ","019","姫路支店","ﾋﾒｼﾞ","003","朝来支店","ｱｻｺﾞ",610,"揖保川支店","ｲﾎﾞｶﾞﾜ",325,"淡路島支店","ｱﾜｼﾞｼﾏ",420,"〇一八","ｾﾞﾛｲﾁﾊﾁ","018"]
["播州信用金庫","1686","コード1","コード2","コード3",null,"青葉台支店","アオバダイ","579","赤穂支店","アコウ","466","赤穂支店","アコウ","036","明石支店","アカシシテン","015","明石支店","ｱｶｼ","025","赤穂支店","ｱｺｳ","016","網干支店","ｱﾎﾞｼ","027","本店営業部","ﾎﾝﾃﾝ","001","尼崎支店","ｱﾏｶﾞｻｷ",110,"神岡支店","ｶﾐｵｶ",336,"串本支店","ｸｼﾓﾄ",540,"〇一九","ｾﾞﾛｲﾁｷﾕｳ","019"]
["兵庫信用金庫","1687",{"$f":"LEFT($D$11,1)","v":{"$error":"#N/A"}},{"$f":"MID(D11,2,1)","v":{"$error":"#N/A"}},{"$f":"MID(D11,3,1)","v":{"$error":"#N/A"}},null,"青山支店","アオヤマ","258","朝霧支店","アサギリ","077","井原支店","イバラ","031","赤穂支店","アコウシテン","026","英賀保支店","ｱｶﾞﾎ","032","網干支店","ｱﾎﾞｼ","006","一宮支店","ｲﾁﾉﾐﾔ","005",null,null,null,"有野支店","ｱﾘﾉ","050","新宮支店","ｼﾝｸﾞｳ",311,"神戸支店","ｺｳﾍﾞ","020","〇二八","ｾﾞﾛﾆﾊﾁ","028"]
["西兵庫信用金庫","1694","引用",{"$f":"VLOOKUP(③記入様式!D33,取扱金融機関!$A$2:$A$13,1,0)","v":{"$error":"#N/A"}},null,null,"赤池支店","アカイケ","738","芦屋駅前支店","アシヤエキマエ","158","大阪支店","オオサカ","045","網干支店","アボシシテン","042","赤穂支店","ｱｺｳ","039","網干駅支店","ｱﾎﾞｼｴｷ","008","上野支店","ｳｴﾉ","003",null,null,null,"稲美支店","ｲﾅﾐ",220,"龍野誉田支店","ﾀﾂﾉﾎﾝﾀﾞ",331,"御坊支店","ｺﾞﾎﾞｳ",530,"〇二九","ｾﾞﾛﾆｷﾕｳ","029"]
["兵庫県医療信用組合","2605","変換",{"$f":"\"[all]\"&$D$8","v":{"$error":"#N/A"}},null,null,"赤川町支店","アカガワチヨウ","138","網干支店","アボシ","345","岡山駅前支店","オカヤマエキマエ","052","インターネット支店","インターネットシテン","070","網干支店","ｱﾎﾞｼ","020","家島支店","ｲｴｼﾏ","014","大津支店","ｵｵﾂ","023",null,null,null,"大橋支店","ｵｵﾊｼ","040","御津支店","ﾐﾂ",328,"但馬支店","ﾀｼﾞﾏ",180,"〇三八","ｾﾞﾛｻﾝﾊﾁ","038"]
["兵庫県信用組合","2606","引用",{"$f":"VLOOKUP(③記入様式!$M$33,INDIRECT(③記入様式!$D$33),1,FALSE)","v":{"$error":"#REF!"}},null,null,"赤坂支店","アカサカ","825","網干駅支店","アボシエキ","459","岡山県庁支店","オカヤマケンチヨウ","066","駅南支店","エキナンシテン","055","尼崎支店","ｱﾏｶﾞｻｷ","068","今宿支店","ｲﾏｼﾞﾕｸ","023","加古川支店","ｶｺｶﾞﾜ","015",null,null,null,"小野支店","ｵﾉ",310,"英賀保支店","ｱｶﾞﾎ",171,"坊勢支店","ﾎﾞｳｾﾞ",100,"〇三九","ｾﾞﾛｻﾝｷﾕｳ","039"]
["兵庫西農業協同組合","7288","コード",{"$f":"IF($D$8=A13,\"\",VLOOKUP($D$10,INDIRECT(D9),3,FALSE))","v":{"$error":"#N/A"}},null,null,"明石支店","アカシ","425","尼崎支店","アマガサキ","051","岡山南支店","オカヤマミナミ","040","駅前支店","エキマエシテン","004","荒井支店","ｱﾗｲ","048","大久保支店","ｵｵｸﾎﾞ","026","加古川北支店","ｶｺｶﾞﾜｷﾀ","017",null,null,null,"柏原支店","ｶｲﾊﾞﾗ",530,"赤穂支店","ｱｺｳ",411,"本店","ﾎﾝﾃﾝ","001","〇四八","ｾﾞﾛﾖﾝﾊﾁ","048"]
["なぎさ信用漁業協同連合会","9477","#N/Aのとき","-","と表示",null,"赤羽支店","アカバネ","226","家島支店","イエシマ","347","岡山流通センター支店","オカヤマリユウツウセンタ－","065","大久保支店","オオクボシテン","047","伊丹支店","ｲﾀﾐ","073","御旅支店","ｵﾀﾋﾞ","030","勝原支店","ｶﾂﾊﾗ","013",null,null,null,"加古川支店","ｶｺｶﾞﾜ",210,"網干支店","ｱﾎﾞｼ",166,"和歌山支店","ﾜｶﾔﾏ",510,"〇四九","ｾﾞﾛﾖﾝｷﾕｳ","049"]
["ゆうちょ銀行",null,null,null,null,null,"昭島支店","アキシマ","678","伊川谷支店","イカワダニ","197","笠岡支店","カサオカ","030","大津支店","オオツシテン","024","市場支店","ｲﾁﾊﾞ","016","加古川支店","ｶｺｶﾞﾜ","041","京口支店","ｷﾖｳｸﾞﾁ","014",null,null,null,"加西支店","ｶｻｲ",370,"荒川支店","ｱﾗｶﾜ",116,null,null,null,"〇五八","ｾﾞﾛｺﾞﾊﾁ","058"]
[null,null,null,null,null,null,"あさがお支店","アサガオ","963","伊丹支店","イタミ","056","片上支店","カタカミ","009","尾上支店","オノウエシテン","021","稲美支店","ｲﾅﾐ","058","上郡支店","ｶﾐｺﾞｵﾘ","015","佐用支店","ｻﾖｳ","024",null,null,null,"篠山支店","ｻｻﾔﾏ",520,"粟賀支店","ｱﾜｶﾞ",211,null,null,null,"〇五九","ｾﾞﾛｺﾞｷﾕｳ","059"]
[null,null,null,null,null,null,"阿佐ケ谷支店","アサガヤ","792","板宿支店","イタヤド","019","賀陽支店","カヨウ","021","小野支店","オノシテン","027","伊保支店","ｲﾎ","034","甲子園支店","ｺｳｼｴﾝ","035","飾磨支店","ｼｶﾏ","021",null,null,null,"三田支店","ｻﾝﾀﾞ",510,"市川支店","ｲﾁｶﾜ",216,null,null,null,"〇六八","ｾﾞﾛﾛｸﾊﾁ","068"]
[null,null,null,null,null,null,"浅草支店","アサクサ","230","稲美支店","イナミ","339","吉備津支店","キビツ","073","加古川支店","カコガワシテン","010","揖保川支店","ｲﾎﾞｶﾞﾜ","030","神戸駅前支店","ｺｳﾍﾞｴｷﾏｴ","028","太子支店","ﾀｲｼ","009",null,null,null,"三宮支店","ｻﾝﾉﾐﾔ","030","有年支店","ｳﾈ",417,null,null,null,"〇六九","ｾﾞﾛﾛｸｷﾕｳ","069"]
[null,null,null,null,null,null,"浅草橋支店","アサクサバシ","614","岩岡支店","イワオカ","199","久世支店","クセ","017","加西支店","カサイシテン","045","今宿支店","ｲﾏｼﾞﾕｸ","033","神戸中央支店","ｺｳﾍﾞﾁﾕｳｵｳ","027","高岡支店","ﾀｶｵｶ","012",null,null,null,"豊岡支店","ﾄﾖｵｶ",620,"大津支店","ｵｵﾂ",164,null,null,null,"〇七八","ｾﾞﾛﾅﾅﾊﾁ","078"]
[null,null,null,null,null,null,"麻布支店","アザブ","270","岩屋支店","イワヤ","413","倉敷営業部","クラシキ","024","春日野支店","カスガノシテン","018","今津支店","ｲﾏﾂﾞ","069","佐用支店","ｻﾖｳ","019","高砂支店","ﾀｶｻｺﾞ","011",null,null,null,"中町支店","ﾅｶﾁﾖｳ",350,"大的支店","ｵｵﾏﾄ",141,null,null,null,"〇七九","ｾﾞﾛﾅﾅｷﾕｳ","079"]
[null,null,null,null,null,null,"あざみ野支店","アザミノ","573","魚住支店","ウオズミ","181","神戸支店","コウベ","038","加東支店","カトウシテン","056","駅前支店","ｴｷﾏｴ","035","飾磨支店","ｼｶﾏ","002","千種支店","ﾁｸｻ","002",null,null,null,"西脇支店","ﾆｼﾜｷ",330,"置塩支店","ｵｷｼｵ",231,null,null,null,"〇八八","ｾﾞﾛﾊﾁﾊﾁ","088"]
[null,null,null,null,null,null,"あじさい支店","アジサイ","954","梅田支店","ウメダ","033","児島支店","コジマ","026","北支店","キタシテン","020","大久保支店","ｵｵｸﾎﾞ","051","城西支店","ｼﾞﾖｳｻｲ","036","土山支店","ﾂﾁﾔﾏ","026",null,null,null,"姫路支店","ﾋﾒｼﾞ",410,"尾崎支店","ｵｻｷ",413,null,null,null,"〇八九","ｾﾞﾛﾊﾁｷﾕｳ","089"]
[null,null,null,null,null,null,"芦屋支店","アシヤ","379","青木支店","オオギ","028","西大寺支店","サイダイジ","007","神戸西支店","コウベニシシテン","016","小野支店","ｵﾉ","077","白浜支店","ｼﾗﾊﾏ","009","林田支店","ﾊﾔｼﾀﾞ","004",null,null,null,"兵庫支店","ﾋﾖｳｺﾞ","020","勝原支店","ｶﾂﾊﾗ",163,null,null,null,"〇九八","ｾﾞﾛｷﾕｳﾊﾁ","098"]
[null,null,null,null,null,null,"芦屋駅前支店","アシヤエキマエ","380","大久保駅前支店","オオクボエキマエ","117","笹沖支店","ササオキ","067","御着支店","ゴチャクシテン","029","加古川支店","ｶｺｶﾞﾜ","012","新長田支店","ｼﾝﾅｶﾞﾀ","052","姫路支店","ﾋﾒｼﾞ","008",null,null,null,"本店営業部","ﾎﾝﾃﾝ","010","上郡支店","ｶﾐｺﾞｵﾘ",424,null,null,null,"〇九九","ｾﾞﾛｷﾕｳｷﾕｳ","099"]
[null,null,null,null,null,null,"厚木支店","アツギ","595","大阪支店","オオサカ","031","瀬戸支店","セト","013","飾磨支店","シカマシテン","007","上郡支店","ｶﾐｺﾞｵﾘ","076","鈴蘭台支店","ｽｽﾞﾗﾝﾀﾞｲ","051","姫路北支店","ﾋﾒｼﾞｷﾀ","010",null,null,null,"三木支店","ﾐｷ",360,"旭陽支店","ｷﾖｸﾖｳ",168,null,null,null,"一〇八","ｲﾁｾﾞﾛﾊﾁ",108]
[null,null,null,null,null,null,"阿倍野支店","アベノ","449","大橋支店","オオハシ","018","妹尾支店","セノオ","054","飾東支店","シキトウシテン","031","北支店","ｷﾀ","027","太子支店","ﾀｲｼ","013","姫路中央支店","ﾋﾒｼﾞﾁﾕｳｵｳ","020",null,null,null,"社支店","ﾔｼﾛ",320,"上月支店","ｺｳﾂﾞｷ",434,null,null,null,"一〇九","ｲﾁｾﾞﾛｷﾕｳ",109]
[null,null,null,null,null,null,"網干支店","アボシ","458","押部谷支店","オシベダニ","149","曹源寺支店","ソウゲンジ","042","城北支店","ジョウホクシテン","032","香寺支店","ｺｳﾃﾞﾗ","072","高砂支店","ﾀｶｻｺﾞ","011","別所支店","ﾍﾞﾂｼﾖ","025",null,null,null,"八千代支店","ﾔﾁﾖ",340,"香呂支店","ｺｳﾛ",224,null,null,null,"一一八","ｲﾁｲﾁﾊﾁ",118]
[null,null,null,null,null,null,"尼崎支店","アマガサキ","419","小野支店","オノ","106","総社支店","ソウジヤ","023","白国支店","シラクニシテン","023","神戸西支店","ｺｳﾍﾞﾆｼ","031","滝の茶屋支店","ﾀｷﾉﾁﾔﾔ","032","別府支店","ﾍﾞﾌ","022",null,null,null,"六甲道支店","ﾛﾂｺｳﾐﾁ","060","坂越支店","ｻｺｼ",415,null,null,null,"一一九","ｲﾁｲﾁｷﾕｳ",119]
[null,null,null,null,null,null,"尼崎市役所出張所","アマガサキシヤクシヨ","423","海岸通支店","カイガンドオリ","780","大供支店","ダイク","004","白浜支店","シラハマシテン","030","三宮支店","ｻﾝﾉﾐﾔ","059","西飾磨支店","ﾆｼｼｶﾏ","003","本店営業部","ﾎﾝﾃﾝ","001",null,null,null,null,null,null,"佐用支店","ｻﾖｳ",431,null,null,null,"一二八","ｲﾁﾆﾊﾁ",128]
[null,null,null,null,null,null,"綾瀬支店","アヤセ","691","柏原支店","カイバラ","393","高島支店","タカシマ","048","太子支店","タイシシテン","044","三宮北支店","ｻﾝﾉﾐﾔｷﾀ","066","野里駅前支店","ﾉｻﾞﾄｴｷﾏｴ","037","安富支店","ﾔｽﾄﾐ","006",null,null,null,null,null,null,"塩屋支店","ｼｵﾔ",412,null,null,null,"一二九","ｲﾁﾆｷﾕｳ",129]
[null,null,null,null,null,null,"あやめ支店","アヤメ","073","加古川支店","カコガワ","087","高梁支店","タカハシ","019","高砂支店","タカサゴシテン","011","飾磨支店","ｼｶﾏ","024","東加古川支店","ﾋｶﾞｼｶｺｶﾞﾜ","024","夢前支店","ﾕﾒｻｷ","016",null,null,null,null,null,null,"飾磨支店","ｼｶﾏ",176,null,null,null,"一三八","ｲﾁｻﾝﾊﾁ",138]
[null,null,null,null,null,null,"飯田橋支店","イイダバシ","888","加西支店","カサイ","334","玉島支店","タマシマ","027","土山支店","ツチヤマシテン","057","飾磨西支店","ｼｶﾏﾆｼ","056","東灘支店","ﾋｶﾞｼﾅﾀﾞ","033",null,null,null,null,null,null,null,null,null,"飾東支店","ｼｷﾄｳ",124,null,null,null,"一三九","ｲﾁｻﾝｷﾕｳ",139]
[null,null,null,null,null,null,"生田支店","イクタ","841","春日野支店","カスガノ","044","玉野支店","タマノ","029","手柄支店","テガラシテン","008","白浜支店","ｼﾗﾊﾏ","042","姫路中央支店","ﾋﾒｼﾞﾁﾕｳｵｳ","021",null,null,null,null,null,null,null,null,null,"四郷支店","ｼｺﾞｳ",122,null,null,null,"一四八","ｲﾁﾖﾝﾊﾁ",148]
[null,null,null,null,null,null,"生野支店","イクノ","109","香住支店","カスミ","702","茶屋町支店","チヤヤマチ","028","名倉支店","ナクラシテン","054","西神南支店","ｾｲｼﾝﾐﾅﾐ","074","広畑支店","ﾋﾛﾊﾀ","005",null,null,null,null,null,null,null,null,null,"城下支店","ｼﾞﾖｳｼﾀ",342,null,null,null,"一四九","ｲﾁﾖﾝｷﾕｳ",149]
[null,null,null,null,null,null,"池下支店","イケシタ","706","上郡支店","カミゴオリ","467","津高支店","ツダカ","074","西支店","ニシシテン","014","船場支店","ｾﾝﾊﾞ","013","藤原台支店","ﾌｼﾞﾜﾗﾀﾞｲ","034",null,null,null,null,null,null,null,null,null,"菅野南支店","ｽｶﾞﾉﾐﾅﾐ",235,null,null,null,"一五九","ｲﾁｺﾞｷﾕｳ",159]
[null,null,null,null,null,null,"池田支店","イケダ","153","川西支店","カワニシ","055","津山支店","ツヤマ","014","野里支店","ノザトシテン","006","太子支店","ﾀｲｼ","040","本店営業部","ﾎﾝﾃﾝ","001",null,null,null,null,null,null,null,null,null,"曽左支店","ｿｻ",131,null,null,null,"一六九","ｲﾁﾛｸｷﾕｳ",169]
[null,null,null,null,null,null,"池袋支店","イケブクロ","225","北野坂支店","キタノザカ","141","鶴形支店","ツルガタ","080","野田支店","ノダシテン","025","高砂支店","ﾀｶｻｺﾞ","015","学が丘支店","ﾏﾅﾋﾞｶﾞｵｶ","045",null,null,null,null,null,null,null,null,null,"太子支店","ﾀｲｼ",324,null,null,null,"一七九","ｲﾁﾅﾅｷﾕｳ",179]
[null,null,null,null,null,null,"池袋東口支店","イケブクロヒガシグチ","671","苦楽園口支店","クラクエングチ","120","東京支店","トウキヨウ","062","東加古川支店","ヒガシカコガワシテン","028","宝塚支店","ﾀｶﾗﾂﾞｶ","071","御立支店","ﾐﾀﾁ","042",null,null,null,null,null,null,null,null,null,"高岡支店","ﾀｶｵｶ",113,null,null,null,"一八九","ｲﾁﾊﾁｷﾕｳ",189]
[null,null,null,null,null,null,"生駒支店","イコマ","773","甲東園支店","コウトウエン","154","中山下支店","ナカサンゲ","043","東支店","ヒガシシテン","003","立花支店","ﾀﾁﾊﾞﾅ","082","山の街支店","ﾔﾏﾉﾏﾁ","038",null,null,null,null,null,null,null,null,null,"高田支店","ﾀｶﾀ",425,null,null,null,"一九九","ｲﾁｷﾕｳｷﾕｳ",199]
[null,null,null,null,null,null,"石橋出張所","イシバシ","195","甲南支店","コウナン","143","中島支店","ナカシマ","047","広畑支店","ヒロハタシテン","012","谷上支店","ﾀﾆｶﾞﾐ","081","六甲支店","ﾛﾂｺｳ","031",null,null,null,null,null,null,null,null,null,"高浜支店","ﾀｶﾊﾏ",174,null,null,null,"二〇八","ﾆｾﾞﾛﾊﾁ",208]
[null,null,null,null,null,null,"和泉支店","イズミ","177","神戸駅前支店","コウベエキマエ","163","中庄支店","ナカシヨウ","060","葺合支店","フキアイシテン","052","垂水支店","ﾀﾙﾐ","061",null,null,null,null,null,null,null,null,null,null,null,null,"寺前支店","ﾃﾗﾏｴ",218,null,null,null,"二〇九","ﾆｾﾞﾛｷﾕｳ",209]
[null,null,null,null,null,null,"泉大津支店","イズミオオツ","176","神戸北町支店","コウベキタマチ","065","灘崎支店","ナダサキ","072","福崎支店","フクサキシテン","041","塚口支店","ﾂｶｸﾞﾁ","078",null,null,null,null,null,null,null,null,null,null,null,null,"豊富支店","ﾄﾖﾄﾐ",156,null,null,null,"二一八","ﾆｲﾁﾊﾁ",218]
[null,null,null,null,null,null,"和泉中央支店","イズミチユウオウ","945","神戸ポート支店","コウベポ－ト","790","成羽支店","ナリワ","022","宝殿支店","ホウデンシテン","033","土山支店","ﾂﾁﾔﾏ","044",null,null,null,null,null,null,null,null,null,null,null,null,"中島支店","ﾅｶｼﾏ",173,null,null,null,"二一九","ﾆｲﾁｷﾕｳ",219]
[null,null,null,null,null,null,"いずみ野支店","イズミノ","242","御着支店","ゴチヤク","460","新見支店","ニイミ","018","本荘支店","ホンジョウシテン","039","豊中支店","ﾄﾖﾅｶ","087",null,null,null,null,null,null,null,null,null,null,null,null,"中寺支店","ﾅｶﾃﾞﾗ",226,null,null,null,"二二八","ﾆﾆﾊﾁ",228]
[null,null,null,null,null,null,"伊勢原支店","イセハラ","868","昆陽里支店","コヤノサト","060","西市支店","ニシイチ","053","本店営業部","ホンテンエイギョウブ","001","灘支店","ﾅﾀﾞ","063",null,null,null,null,null,null,null,null,null,null,null,null,"南光支店","ﾅﾝｺｳ",436,null,null,null,"二二九","ﾆﾆｷﾕｳ",229]
[null,null,null,null,null,null,"立売堀支店","イタチボリ","123","逆瀬川支店","サカセガワ","057","庭瀬支店","ニワセ","057","丸山支店","マルヤマシテン","053","西支店","ﾆｼ","075",null,null,null,null,null,null,null,null,null,null,null,null,"花田支店","ﾊﾅﾀﾞ",126,null,null,null,"二三八","ﾆｻﾝﾊﾁ",238]
[null,null,null,null,null,null,"板橋支店","イタバシ","551","篠山支店","ササヤマ","323","野田支店","ノダ","046","三木支店","ミキシテン","043","西明石支店","ﾆｼｱｶｼ","047",null,null,null,null,null,null,null,null,null,null,null,null,"林田支店","ﾊﾔｼﾀﾞ",135,null,null,null,"二三九","ﾆｻﾝｷﾕｳ",239]
[null,null,null,null,null,null,"板橋中台出張所","イタバシナカダイ","698","三田支店","サンダ","321","八王寺支店","ハチオウジ","063","湊川支店","ミナトガワシテン","019","西宮支店","ﾆｼﾉﾐﾔ","067",null,null,null,null,null,null,null,null,null,null,null,null,"姫路中央支店","ﾋﾒｼﾞﾁﾕｳｵｳ",114,null,null,null,"二四八","ﾆﾖﾝﾊﾁ",248]
[null,null,null,null,null,null,"伊丹支店","イタミ","355","三宮支店","サンノミヤ","111","林野支店","ハヤシノ","015","六角出張所","ロッカクシュッチョウジョ","034","西宮北支店","ﾆｼﾉﾐﾔｷﾀ","085",null,null,null,null,null,null,null,null,null,null,null,null,"姫路灘支店","ﾋﾒｼﾞﾅﾀﾞ",145,null,null,null,"二四九","ﾆﾖﾝｷﾕｳ",249]
[null,null,null,null,null,null,"板宿支店","イタヤド","368","志方支店","シカタ","437","早島支店","ハヤシマ","070","六甲支店","ロッコウシテン","017","西脇支店","ﾆｼﾜｷ","083",null,null,null,null,null,null,null,null,null,null,null,null,"姫路西支店","ﾋﾒｼﾞﾆｼ",132,null,null,null,"二五九","ﾆｺﾞｷﾕｳ",259]
[null,null,null,null,null,null,"市川支店","イチカワ","700","飾磨支店","シカマ","118","原尾島支店","ハラオシマ","049",null,null,null,"野口支店","ﾉｸﾞﾁ","057",null,null,null,null,null,null,null,null,null,null,null,null,"広畑支店","ﾋﾛﾊﾀ",161,null,null,null,"二六九","ﾆﾛｸｷﾕｳ",269]
[null,null,null,null,null,null,"一社支店","イツシヤ","712","志染支店","シジミ","088","姫路支店","ヒメジ","035",null,null,null,"野里支店","ﾉｻﾞﾄ","014",null,null,null,null,null,null,null,null,null,null,null,null,"福崎支店","ﾌｸｻｷ",221,null,null,null,"二七九","ﾆﾅﾅｷﾕｳ",279]
[null,null,null,null,null,null,"茨木支店","イバラキ","169","新多聞支店","シンタモン","023","平井支店","ヒライ","068",null,null,null,"花田支店","ﾊﾅﾀﾞ","062",null,null,null,null,null,null,null,null,null,null,null,null,"福崎東支店","ﾌｸｻｷﾋｶﾞｼ",223,null,null,null,"二八九","ﾆﾊﾁｷﾕｳ",289]
[null,null,null,null,null,null,"茨木西支店","イバラキニシ","559","水道筋支店","スイドウスジ","013","蒜山支店","ヒルゼン","076",null,null,null,"東支店","ﾋｶﾞｼ","019",null,null,null,null,null,null,null,null,null,null,null,null,"船坂支店","ﾌﾅｻｶ",428,null,null,null,"三一八","ｻﾝｲﾁﾊﾁ",318]
[null,null,null,null,null,null,"今里支店","イマザト","105","鈴蘭台支店","スズランダイ","148","福山支店","フクヤマ","032",null,null,null,"東加古川支店","ﾋｶﾞｼｶｺｶﾞﾜ","029",null,null,null,null,null,null,null,null,null,null,null,null,"船山支店","ﾌﾅﾔﾏ",151,null,null,null,"三二八","ｻﾝﾆﾊﾁ",328]
[null,null,null,null,null,null,"いりなか支店","イリナカ","748","須磨ニュータウン支店","スマニユ－タウン","170","福渡支店","フクワタリ","002",null,null,null,"東灘支店","ﾋｶﾞｼﾅﾀﾞ","028",null,null,null,null,null,null,null,null,null,null,null,null,"別所支店","ﾍﾞﾂｼﾖ",121,null,null,null,"三三八","ｻﾝｻﾝﾊﾁ",338]
[null,null,null,null,null,null,"上田支店","ウエダ","009","住吉支店","スミヨシ","068","奉還町支店","ホウカンチヨウ","005",null,null,null,"兵庫支店","ﾋﾖｳｺﾞ","026",null,null,null,null,null,null,null,null,null,null,null,null,"本店","ﾎﾝﾃﾝ",500,null,null,null,"四〇八","ﾖﾝｾﾞﾛﾊﾁ",408]
[null,null,null,null,null,null,"上野支店","ウエノ","779","洲本支店","スモト","071","本店","ホンテン","001",null,null,null,"平野支店","ﾋﾗﾉ","036",null,null,null,null,null,null,null,null,null,null,null,null,"前之庄支店","ﾏｴﾉｼﾖｳ",233,null,null,null,"四一八","ﾖﾝｲﾁﾊﾁ",418]
[null,null,null,null,null,null,"ウェブサイト支店","ウエブサイト","988","西神中央支店","セイシンチユウオウ","048","三門支店","ミカド","039",null,null,null,"広畑支店","ﾋﾛﾊﾀ","037",null,null,null,null,null,null,null,null,null,null,null,null,"三日月支店","ﾐｶﾂﾞｷ",438,null,null,null,"四二八","ﾖﾝﾆﾊﾁ",428]
[null,null,null,null,null,null,"上町支店","ウエマチ","106","西神ニュータウン西支店","セイシンニユ－タウンニシ","047","水島支店","ミズシマ","025",null,null,null,"福崎支店","ﾌｸｻｷ","023",null,null,null,null,null,null,null,null,null,null,null,null,"御国野支店","ﾐｸﾆﾉ",123,null,null,null,"四四八","ﾖﾝﾖﾝﾊﾁ",448]
[null,null,null,null,null,null,"牛久支店","ウシク","012","千里山支店","センリヤマ","040","ももたろう支店","モモタロウ","800",null,null,null,"二見支店","ﾌﾀﾐ","043",null,null,null,null,null,null,null,null,null,null,null,null,"水上支店","ﾐｽﾞｶﾐ",153,null,null,null,"四五八","ﾖﾝｺﾞﾊﾁ",458]
[null,null,null,null,null,null,"歌島橋支店","ウタジマバシ","126","高倉台支店","タカクラダイ","022","矢掛支店","ヤカゲ","071",null,null,null,"別府支店","ﾍﾞﾌ","049",null,null,null,null,null,null,null,null,null,null,null,null,"安富支店","ﾔｽﾄﾐ",349,null,null,null,"四六八","ﾖﾝﾛｸﾊﾁ",468]
[null,null,null,null,null,null,"ウッディタウン出張所","ウツデイタウン","395","高砂支店","タカサゴ","337","吉井支店","ヨシイ","012",null,null,null,"北条支店","ﾎｳｼﾞﾖｳ","021",null,null,null,null,null,null,null,null,null,null,null,null,"安室支店","ﾔｽﾑﾛ",112,null,null,null,"四七八","ﾖﾝﾅﾅﾊﾁ",478]
[null,null,null,null,null,null,"梅田支店","ウメダ","127","宝塚支店","タカラヅカ","066","竜操支店","リユウソウ","058",null,null,null,"保城支店","ﾎｳｼﾛ","041",null,null,null,null,null,null,null,null,null,null,null,null,"矢野支店","ﾔﾉ",423,null,null,null,"五一八","ｺﾞｲﾁﾊﾁ",518]
[null,null,null,null,null,null,"浦安支店","ウラヤス","549","谷上支店","タニガミ","042","和気支店","ワケ","011",null,null,null,"宝殿支店","ﾎｳﾃﾞﾝ","053",null,null,null,null,null,null,null,null,null,null,null,null,"八幡支店","ﾔﾊﾀ",162,null,null,null,"五二八","ｺﾞﾆﾊﾁ",528]
[null,null,null,null,null,null,"浦和支店","ウラワ","040","垂水支店","タルミ","020",null,null,null,null,null,null,"本店営業部","ﾎﾝﾃﾝ","011",null,null,null,null,null,null,null,null,null,null,null,null,"山崎支店","ﾔﾏｻｷ",341,null,null,null,"五三八","ｺﾞｻﾝﾊﾁ",538]
[null,null,null,null,null,null,"永福町支店","エイフクチヨウ","638","中央市場支店","チユウオウイチバ","162",null,null,null,null,null,null,"三木支店","ﾐｷ","050",null,null,null,null,null,null,null,null,null,null,null,null,"若狭野支店","ﾜｶｻﾉ",421,null,null,null,"五四八","ｺﾞﾖﾝﾊﾁ",548]
[null,null,null,null,null,null,"江坂支店","エサカ","193","塚口支店","ツカグチ","237",null,null,null,null,null,null,"御立支店","ﾐﾀﾁ","052",null,null,null,null,null,null,null,null,null,null,null,null,null,null,null,null,null,null,"五五八","ｺﾞｺﾞﾊﾁ",558]
[null,null,null,null,null,null,"エーティーエム統括支店","エ－テイ－エムトウカツ","390","月見山支店","ツキミヤマ","184",null,null,null,null,null,null,"本山支店","ﾓﾄﾔﾏ","038",null,null,null,null,null,null,null,null,null,null,null,null,null,null,null,null,null,null,"六一八","ﾛｸｲﾁﾊﾁ",618]
[null,null,null,null,null,null,"ＡＴＭサービス西日本第一支店","エ－テイ－エムニシイチ","702","土山支店","ツチヤマ","178",null,null,null,null,null,null,"夢みらい支店","ﾕﾒﾐﾗｲ","080",null,null,null,null,null,null,null,null,null,null,null,null,null,null,null,null,null,null,"六二八","ﾛｸﾆﾊﾁ",628]
[null,null,null,null,null,null,"ＡＴＭサービス西日本第五支店","エ－テイ－エムニシゴ","729","津名支店","ツナ","352",null,null,null,null,null,null,"淀川支店","ﾖﾄﾞｶﾞﾜ","086",null,null,null,null,null,null,null,null,null,null,null,null,null,null,null,null,null,null,"六三八","ﾛｸｻﾝﾊﾁ",638]
[null,null,null,null,null,null,"ＡＴＭサービス西日本第三支店","エ－テイ－エムニシサン","723","東京支店","トウキヨウ","070",null,null,null,null,null,null,"六甲道支店","ﾛﾂｺｳﾐﾁ","064",null,null,null,null,null,null,null,null,null,null,null,null,null,null,null,null,null,null,"六四八","ﾛｸﾖﾝﾊﾁ",648]
[null,null,null,null,null,null,"ＡＴＭサービス西日本第七支店","エ－テイ－エムニシナナ","767","東部市場支店","トウブイチバ","116",null,null,null,null,null,null,null,null,null,null,null,null,null,null,null,null,null,null,null,null,null,null,null,null,null,null,null,"七〇八","ﾅﾅｾﾞﾛﾊﾁ",708]
[null,null,null,null,null,null,"ＡＴＭサービス西日本第二支店","エ－テイ－エムニシニ","709","豊岡支店","トヨオカ","705",null,null,null,null,null,null,null,null,null,null,null,null,null,null,null,null,null,null,null,null,null,null,null,null,null,null,null,"七一八","ﾅﾅｲﾁﾊﾁ",718]
[null,null,null,null,null,null,"ＡＴＭサービス西日本第八支店","エ－テイ－エムニシハチ","770","長田支店","ナガタ","017",null,null,null,null,null,null,null,null,null,null,null,null,null,null,null,null,null,null,null,null,null,null,null,null,null,null,null,"七二八","ﾅﾅﾆﾊﾁ",728]
[null,null,null,null,null,null,"ＡＴＭサービス西日本第四支店","エ－テイ－エムニシヨン","725","鳴尾支店","ナルオ","059",null,null,null,null,null,null,null,null,null,null,null,null,null,null,null,null,null,null,null,null,null,null,null,null,null,null,null,"七三八","ﾅﾅｻﾝﾊﾁ",738]
[null,null,null,null,null,null,"ＡＴＭサービス西日本第六支店","エ－テイ－エムニシロク","756","西明石支店","ニシアカシ","176",null,null,null,null,null,null,null,null,null,null,null,null,null,null,null,null,null,null,null,null,null,null,null,null,null,null,null,"七四八","ﾅﾅﾖﾝﾊﾁ",748]
[null,null,null,null,null,null,"ＡＴＭサービス東日本第五支店","エ－テイ－エムヒガシゴ","662","西鈴蘭台支店","ニシスズランダイ","021",null,null,null,null,null,null,null,null,null,null,null,null,null,null,null,null,null,null,null,null,null,null,null,null,null,null,null,"七五八","ﾅﾅｺﾞﾊﾁ",758]
[null,null,null,null,null,null,"ＡＴＭサービス東日本第三支店","エ－テイ－エムヒガシサン","629","西宮支店","ニシノミヤ","151",null,null,null,null,null,null,null,null,null,null,null,null,null,null,null,null,null,null,null,null,null,null,null,null,null,null,null,"七六八","ﾅﾅﾛｸﾊﾁ",768]
[null,null,null,null,null,null,"ＡＴＭサービス東日本第七支店","エ－テイ－エムヒガシナナ","664","西脇支店","ニシワキ","086",null,null,null,null,null,null,null,null,null,null,null,null,null,null,null,null,null,null,null,null,null,null,null,null,null,null,null,"七七八","ﾅﾅﾅﾅﾊﾁ",778]
[null,null,null,null,null,null,"ＡＴＭサービス東日本第二支店","エ－テイ－エムヒガシニ","624","野里支店","ノザト","454",null,null,null,null,null,null,null,null,null,null,null,null,null,null,null,null,null,null,null,null,null,null,null,null,null,null,null,"七八八","ﾅﾅﾊﾁﾊﾁ",788]
[null,null,null,null,null,null,"ＡＴＭサービス東日本第八支店","エ－テイ－エムヒガシハチ","667","阪急御影支店","ハンキユウミカゲ","132",null,null,null,null,null,null,null,null,null,null,null,null,null,null,null,null,null,null,null,null,null,null,null,null,null,null,null,"七九八","ﾅﾅｷﾕｳﾊﾁ",798]
[null,null,null,null,null,null,"ＡＴＭサービス東日本第四支店","エ－テイ－エムヒガシヨン","644","東加古川支店","ヒガシカコガワ","079",null,null,null,null,null,null,null,null,null,null,null,null,null,null,null,null,null,null,null,null,null,null,null,null,null,null,null,"八一八","ﾊﾁｲﾁﾊﾁ",818]
[null,null,null,null,null,null,"ＡＴＭサービス東日本第六支店","エ－テイ－エムヒガシロク","663","姫路支店","ヒメジ","081",null,null,null,null,null,null,null,null,null,null,null,null,null,null,null,null,null,null,null,null,null,null,null,null,null,null,null,"八二八","ﾊﾁﾆﾊﾁ",828]
[null,null,null,null,null,null,"江戸川支店","エドガワ","821","姫路中央支店","ヒメジチユウオウ","349",null,null,null,null,null,null,null,null,null,null,null,null,null,null,null,null,null,null,null,null,null,null,null,null,null,null,null,"八三八","ﾊﾁｻﾝﾊﾁ",838]
[null,null,null,null,null,null,"荏原支店","エバラ","238","兵庫支店","ヒヨウゴ","015",null,null,null,null,null,null,null,null,null,null,null,null,null,null,null,null,null,null,null,null,null,null,null,null,null,null,null,"八四八","ﾊﾁﾖﾝﾊﾁ",848]
[null,null,null,null,null,null,"恵比寿支店","エビス","656","福崎支店","フクサキ","462",null,null,null,null,null,null,null,null,null,null,null,null,null,null,null,null,null,null,null,null,null,null,null,null,null,null,null,"八五八","ﾊﾁｺﾞﾊﾁ",858]
[null,null,null,null,null,null,"円町支店","エンマチ","491","藤原台支店","フジワラダイ","108",null,null,null,null,null,null,null,null,null,null,null,null,null,null,null,null,null,null,null,null,null,null,null,null,null,null,null,"八六八","ﾊﾁﾛｸﾊﾁ",868]
[null,null,null,null,null,null,"王子支店","オウジ","673","二見支店","フタミ","303",null,null,null,null,null,null,null,null,null,null,null,null,null,null,null,null,null,null,null,null,null,null,null,null,null,null,null,"九〇八","ｷﾕｳｾﾞﾛﾊﾁ",908]
[null,null,null,null,null,null,"大泉支店","オオイズミ","608","宝殿支店","ホウデン","083",null,null,null,null,null,null,null,null,null,null,null,null,null,null,null,null,null,null,null,null,null,null,null,null,null,null,null,"九一八","ｷﾕｳｲﾁﾊﾁ",918]
[null,null,null,null,null,null,"大分支店","オオイタ","721","本荘支店","ホンジヨウ","089",null,null,null,null,null,null,null,null,null,null,null,null,null,null,null,null,null,null,null,null,null,null,null,null,null,null,null,"九二八","ｷﾕｳﾆﾊﾁ",928]
[null,null,null,null,null,null,"大久保支店","オオクボ","426","本店","ホンテン","011",null,null,null,null,null,null,null,null,null,null,null,null,null,null,null,null,null,null,null,null,null,null,null,null,null,null,null,"九三八","ｷﾕｳｻﾝﾊﾁ",938]
[null,null,null,null,null,null,"大阪公務部","オオサカコウムブ","045","舞子支店","マイコ","180",null,null,null,null,null,null,null,null,null,null,null,null,null,null,null,null,null,null,null,null,null,null,null,null,null,null,null,"九四八","ｷﾕｳﾖﾝﾊﾁ",948]
[null,null,null,null,null,null,"大阪第一支店","オオサカダイイチ","941","三木支店","ミキ","085",null,null,null,null,null,null,null,null,null,null,null,null,null,null,null,null,null,null,null,null,null,null,null,null,null,null,null,"九五八","ｷﾕｳｺﾞﾊﾁ",958]
[null,null,null,null,null,null,"大阪第二支店","オオサカダイニ","980","御崎支店","ミサキ","115",null,null,null,null,null,null,null,null,null,null,null,null,null,null,null,null,null,null,null,null,null,null,null,null,null,null,null,"九六八","ｷﾕｳﾛｸﾊﾁ",968]
[null,null,null,null,null,null,"大阪中央支店","オオサカチユウオウ","710","湊支店","ミナト","417",null,null,null,null,null,null,null,null,null,null,null,null,null,null,null,null,null,null,null,null,null,null,null,null,null,null,null,"九七八","ｷﾕｳﾅﾅﾊﾁ",978]
[null,null,null,null,null,null,"大阪西支店","オオサカニシ","443","南あわじ支店","ミナミアワジ","074",null,null,null,null,null,null,null,null,null,null,null,null,null,null,null,null,null,null,null,null,null,null,null,null,null,null,null,"九八八","ｷﾕｳﾊﾁﾊﾁ",988]
[null,null,null,null,null,null,"大阪ビジネスパーク出張所","オオサカビジネスパ－ク","148","武庫之荘支店","ムコノソウ","052",null,null,null,null,null,null,null,null,null,null,null,null,null,null,null,null,null,null,null,null,null,null,null,null,null,null,null,"九九八","ｷﾕｳｷﾕｳﾊﾁ",998]
[null,null,null,null,null,null,"大阪本店営業部","オオサカホンテン","101","明南支店","メイナン","078"]
[null,null,null,null,null,null,"大崎出張所","オオサキ","739","明舞支店","メイマイ","175"]
[null,null,null,null,null,null,"太田支店","オオタ","032","本山支店","モトヤマ","012"]
[null,null,null,null,null,null,"大塚支店","オオツカ","227","社支店","ヤシロ","325"]
[null,null,null,null,null,null,"鳳支店","オオトリ","180","山崎支店","ヤマサキ","343"]
[null,null,null,null,null,null,"大船支店","オオフナ","873","夢野支店","ユメノ","016"]
[null,null,null,null,null,null,"大宮支店","オオミヤ","514","横尾支店","ヨコオ","029"]
[null,null,null,null,null,null,"大牟田支店","オオムタ","708","六甲アイランド支店","ロツコウアイランド","050"]
[null,null,null,null,null,null,"大森支店","オオモリ","785","六甲道支店","ロツコウミチ","103"]
[null,null,null,null,null,null,"岡崎支店","オカザキ","703","和田山支店","ワダヤマ","710"]
[null,null,null,null,null,null,"岡本支店","オカモト","526"]
[null,null,null,null,null,null,"岡山支店","オカヤマ","651"]
[null,null,null,null,null,null,"荻窪支店","オギクボ","362"]
[null,null,null,null,null,null,"桶川支店","オケガワ","056"]
[null,null,null,null,null,null,"小田原支店","オダワラ","862"]
[null,null,null,null,null,null,"尾道支店","オノミチ","602"]
[null,null,null,null,null,null,"小山支店","オヤマ","022"]
[null,null,null,null,null,null,"御岳山出張所","オンタケサン","907"]
[null,null,null,null,null,null,"貝塚支店","カイヅカ","175"]
[null,null,null,null,null,null,"柿生支店","カキオ","217"]
[null,null,null,null,null,null,"学園前支店","ガクエンマエ","546"]
[null,null,null,null,null,null,"学芸大学駅前支店","ガクダイマエ","094"]
[null,null,null,null,null,null,"加古川支店","カコガワ","431"]
[null,null,null,null,null,null,"鹿児島支店","カゴシマ","508"]
[null,null,null,null,null,null,"葛西支店","カサイ","823"]
[null,null,null,null,null,null,"柏支店","カシワ","498"]
[null,null,null,null,null,null,"春日部支店","カスカベ","005"]
[null,null,null,null,null,null,"霞が関支店","カスミガセキ","639"]
[null,null,null,null,null,null,"片瀬山出張所","カタセヤマ","351"]
[null,null,null,null,null,null,"葛飾支店","カツシカ","231"]
[null,null,null,null,null,null,"門真支店","カドマ","168"]
[null,null,null,null,null,null,"カトレア支店","カトレア","964"]
[null,null,null,null,null,null,"金沢支店","カナザワ","366"]
[null,null,null,null,null,null,"金沢八景支店","カナザワハツケイ","567"]
[null,null,null,null,null,null,"金沢文庫支店","カナザワブンコ","330"]
[null,null,null,null,null,null,"金山支店","カナヤマ","749"]
[null,null,null,null,null,null,"鎌ケ谷支店","カマガヤ","905"]
[null,null,null,null,null,null,"鎌倉支店","カマクラ","933"]
[null,null,null,null,null,null,"蒲田支店","カマタ","239"]
[null,null,null,null,null,null,"蒲田西支店","カマタニシ","097"]
[null,null,null,null,null,null,"上大岡支店","カミオオオカ","566"]
[null,null,null,null,null,null,"上福岡支店","カミフクオカ","057"]
[null,null,null,null,null,null,"上前津支店","カミマエヅ","482"]
[null,null,null,null,null,null,"亀有支店","カメアリ","029"]
[null,null,null,null,null,null,"亀戸支店","カメイド","254"]
[null,null,null,null,null,null,"刈谷支店","カリヤ","486"]
[null,null,null,null,null,null,"川口支店","カワグチ","039"]
[null,null,null,null,null,null,"川越支店","カワゴエ","507"]
[null,null,null,null,null,null,"川崎支店","カワサキ","755"]
[null,null,null,null,null,null,"河内長野支店","カワチナガノ","164"]
[null,null,null,null,null,null,"川西支店","カワニシ","356"]
[null,null,null,null,null,null,"神田支店","カンダ","219"]
[null,null,null,null,null,null,"神田駅前支店","カンダエキマエ","220"]
[null,null,null,null,null,null,"関東第一支店","カントウダイイチ","968"]
[null,null,null,null,null,null,"関東第三支店","カントウダイサン","962"]
[null,null,null,null,null,null,"関東第二支店","カントウダイニ","960"]
[null,null,null,null,null,null,"木更津支店","キサラヅ","074"]
[null,null,null,null,null,null,"岸和田支店","キシワダ","171"]
[null,null,null,null,null,null,"北九州支店","キタキユウシユウ","704"]
[null,null,null,null,null,null,"北鈴蘭台支店","キタスズランダイ","387"]
[null,null,null,null,null,null,"北須磨支店","キタスマ","689"]
[null,null,null,null,null,null,"北野支店","キタノ","268"]
[null,null,null,null,null,null,"喜多見支店","キタミ","030"]
[null,null,null,null,null,null,"吉祥寺支店","キチジヨウジ","845"]
[null,null,null,null,null,null,"岐阜支店","ギフ","407"]
[null,null,null,null,null,null,"九州支店","キユウシユウ","731"]
[null,null,null,null,null,null,"京都支店","キヨウト","496"]
[null,null,null,null,null,null,"経堂支店","キヨウドウ","597"]
[null,null,null,null,null,null,"行徳支店","ギヨウトク","206"]
[null,null,null,null,null,null,"京橋支店","キヨウバシ","637"]
[null,null,null,null,null,null,"清瀬支店","キヨセ","849"]
[null,null,null,null,null,null,"近畿第一支店","キンキダイイチ","974"]
[null,null,null,null,null,null,"近畿第二支店","キンキダイニ","985"]
[null,null,null,null,null,null,"銀座支店","ギンザ","026"]
[null,null,null,null,null,null,"錦糸町支店","キンシチヨウ","615"]
[null,null,null,null,null,null,"杭瀬支店","クイセ","533"]
[null,null,null,null,null,null,"くずは支店","クズハ","183"]
[null,null,null,null,null,null,"国立支店","クニタチ","666"]
[null,null,null,null,null,null,"熊谷支店","クマガヤ","038"]
[null,null,null,null,null,null,"ぼたん支店","クマモト","884"]
[null,null,null,null,null,null,"熊本支店","クマモト","720"]
[null,null,null,null,null,null,"久留米支店","クルメ","718"]
[null,null,null,null,null,null,"クロッカス支店","クロツカス","946"]
[null,null,null,null,null,null,"京阪京橋支店","ケイハンキヨウバシ","139"]
[null,null,null,null,null,null,"小石川支店","コイシカワ","813"]
[null,null,null,null,null,null,"小岩支店","コイワ","643"]
[null,null,null,null,null,null,"高円寺支店","コウエンジ","089"]
[null,null,null,null,null,null,"甲子園支店","コウシエン","582"]
[null,null,null,null,null,null,"甲子園口支店","コウシエングチ","372"]
[null,null,null,null,null,null,"麹町支店","コウジマチ","218"]
[null,null,null,null,null,null,"甲東支店","コウトウ","376"]
[null,null,null,null,null,null,"甲南支店","コウナン","306"]
[null,null,null,null,null,null,"港南台支店","コウナンダイ","172"]
[null,null,null,null,null,null,"甲府支店","コウフ","473"]
[null,null,null,null,null,null,"神戸営業部","コウベ","500"]
[null,null,null,null,null,null,"神戸駅前支店","コウベエキマエ","313"]
[null,null,null,null,null,null,"神戸学園都市支店","コウベガクエントシ","338"]
[null,null,null,null,null,null,"神戸公務部","コウベコウムブ","210"]
[null,null,null,null,null,null,"神戸市役所出張所","コウベシヤクシヨ","598"]
[null,null,null,null,null,null,"港北ニュータウン支店","コウホクニユ－タウン","382"]
[null,null,null,null,null,null,"光明池支店","コウミヨウイケ","961"]
[null,null,null,null,null,null,"香里支店","コウリ","757"]
[null,null,null,null,null,null,"香里ケ丘支店","コウリガオカ","184"]
[null,null,null,null,null,null,"小金井支店","コガネイ","848"]
[null,null,null,null,null,null,"御器所支店","ゴキソ","736"]
[null,null,null,null,null,null,"国分寺支店","コクブンジ","836"]
[null,null,null,null,null,null,"国領支店","コクリヨウ","681"]
[null,null,null,null,null,null,"小阪支店","コサカ","166"]
[null,null,null,null,null,null,"越谷支店","コシガヤ","344"]
[null,null,null,null,null,null,"コスモス支店","コスモス","750"]
[null,null,null,null,null,null,"コスモタワー出張所","コスモタワ－","560"]
[null,null,null,null,null,null,"五反田支店","ゴタンダ","653"]
[null,null,null,null,null,null,"五反野支店","ゴタンノ","839"]
[null,null,null,null,null,null,"小手指支店","コテサシ","516"]
[null,null,null,null,null,null,"粉浜支店","コハマ","117"]
[null,null,null,null,null,null,"駒川町支店","コマガワチヨウ","141"]
[null,null,null,null,null,null,"金剛支店","コンゴウ","194"]
[null,null,null,null,null,null,"佐賀支店","サガ","719"]
[null,null,null,null,null,null,"堺支店","サカイ","178"]
[null,null,null,null,null,null,"逆瀬川支店","サカセガワ","378"]
[null,null,null,null,null,null,"坂戸支店","サカド","058"]
[null,null,null,null,null,null,"相模原支店","サガミハラ","894"]
[null,null,null,null,null,null,"佐倉支店","サクラ","075"]
[null,null,null,null,null,null,"桜井出張所","サクライ","198"]
[null,null,null,null,null,null,"桜新町支店","サクラシンマチ","658"]
[null,null,null,null,null,null,"笹塚支店","ササヅカ","921"]
[null,null,null,null,null,null,"篠山支店","ササヤマ","392"]
[null,null,null,null,null,null,"札幌支店","サツポロ","301"]
[null,null,null,null,null,null,"佐野支店","サノ","174"]
[null,null,null,null,null,null,"サルビア支店","サルビア","209"]
[null,null,null,null,null,null,"三田支店","サンダ","391"]
[null,null,null,null,null,null,"三宮支店","サンノミヤ","410"]
[null,null,null,null,null,null,"飾磨支店","シカマ","455"]
[null,null,null,null,null,null,"四貫島支店","シカンジマ","125"]
[null,null,null,null,null,null,"志木ニュータウン支店","シキニユ－タウン","354"]
[null,null,null,null,null,null,"四条支店","シジヨウ","512"]
[null,null,null,null,null,null,"四条畷支店","シジヨウナワテ","758"]
[null,null,null,null,null,null,"静岡支店","シズオカ","332"]
[null,null,null,null,null,null,"品川支店","シナガワ","828"]
[null,null,null,null,null,null,"渋谷支店","シブヤ","654"]
[null,null,null,null,null,null,"渋谷駅前支店","シブヤエキマエ","234"]
[null,null,null,null,null,null,"志村支店","シムラ","797"]
[null,null,null,null,null,null,"下井草支店","シモイグサ","626"]
[null,null,null,null,null,null,"下北沢支店","シモキタザワ","835"]
[null,null,null,null,null,null,"下高井戸支店","シモタカイド","255"]
[null,null,null,null,null,null,"下関支店","シモノセキ","711"]
[null,null,null,null,null,null,"下丸子支店","シモマルコ","810"]
[null,null,null,null,null,null,"ジャスミン支店","ジヤスミン","870"]
[null,null,null,null,null,null,"自由が丘支店","ジユウガオカ","655"]
[null,null,null,null,null,null,"十三支店","ジユウソウ","134"]
[null,null,null,null,null,null,"夙川支店","シユクガワ","374"]
[null,null,null,null,null,null,"首都圏支店","シユトケン","926"]
[null,null,null,null,null,null,"少路支店","シヨウジ","949"]
[null,null,null,null,null,null,"城東支店","ジヨウトウ","132"]
[null,null,null,null,null,null,"庄内支店","シヨウナイ","167"]
[null,null,null,null,null,null,"湘南台支店","シヨウナンダイ","932"]
[null,null,null,null,null,null,"しらゆり支店","シラユリ","761"]
[null,null,null,null,null,null,"新石切支店","シンイシキリ","159"]
[null,null,null,null,null,null,"新大阪支店","シンオオサカ","506"]
[null,null,null,null,null,null,"新検見川支店","シンケミガワ","856"]
[null,null,null,null,null,null,"新小岩支店","シンコイワ","232"]
[null,null,null,null,null,null,"新宿支店","シンジユク","221"]
[null,null,null,null,null,null,"新宿通支店","シンジユクドオリ","661"]
[null,null,null,null,null,null,"新宿西口支店","シンジユクニシグチ","259"]
[null,null,null,null,null,null,"新所沢支店","シントコロザワ","855"]
[null,null,null,null,null,null,"新橋支店","シンバシ","216"]
[null,null,null,null,null,null,"神保町支店","ジンボウチヨウ","001"]
[null,null,null,null,null,null,"新松戸出張所","シンマツド","844"]
[null,null,null,null,null,null,"新百合ケ丘支店","シンユリガオカ","360"]
[null,null,null,null,null,null,"新横浜支店","シンヨコハマ","322"]
[null,null,null,null,null,null,"すいせん支店","スイセン","977"]
[null,null,null,null,null,null,"吹田支店","スイタ","751"]
[null,null,null,null,null,null,"巣鴨支店","スガモ","693"]
[null,null,null,null,null,null,"逗子支店","ズシ","173"]
[null,null,null,null,null,null,"すずらん支店","スズラン","760"]
[null,null,null,null,null,null,"鈴蘭台支店","スズランダイ","348"]
[null,null,null,null,null,null,"砂町支店","スナマチ","150"]
[null,null,null,null,null,null,"須磨支店","スマ","369"]
[null,null,null,null,null,null,"住吉支店","スミヨシ","307"]
[null,null,null,null,null,null,"すみれ支店","スミレ","956"]
[null,null,null,null,null,null,"洲本支店","スモト","411"]
[null,null,null,null,null,null,"諏訪支店","スワ","018"]
[null,null,null,null,null,null,"成城支店","セイジヨウ","222"]
[null,null,null,null,null,null,"西神中央支店","セイシンチユウオウ","337"]
[null,null,null,null,null,null,"関目支店","セキメ","728"]
[null,null,null,null,null,null,"世田谷支店","セタガヤ","788"]
[null,null,null,null,null,null,"千川支店","センカワ","904"]
[null,null,null,null,null,null,"千住支店","センジユ","248"]
[null,null,null,null,null,null,"洗足支店","センゾク","142"]
[null,null,null,null,null,null,"仙台支店","センダイ","311"]
[null,null,null,null,null,null,"センター南支店","センタ－ミナミ","952"]
[null,null,null,null,null,null,"泉南支店","センナン","181"]
[null,null,null,null,null,null,"船場支店","センバ","122"]
[null,null,null,null,null,null,"千林支店","センバヤシ","140"]
[null,null,null,null,null,null,"泉北とが支店","センボクトガ","187"]
[null,null,null,null,null,null,"千里中央支店","センリチユウオウ","556"]
[null,null,null,null,null,null,"草加支店","ソウカ","341"]
[null,null,null,null,null,null,"曽根出張所","ソネ","436"]
[null,null,null,null,null,null,"園田支店","ソノダ","422"]
[null,null,null,null,null,null,"大正区支店","タイシヨウク","124"]
[null,null,null,null,null,null,"高尾支店","タカオ","906"]
[null,null,null,null,null,null,"高砂支店","タカサゴ","435"]
[null,null,null,null,null,null,"高島平支店","タカシマダイラ","266"]
[null,null,null,null,null,null,"高田馬場支店","タカダノババ","273"]
[null,null,null,null,null,null,"高槻支店","タカツキ","152"]
[null,null,null,null,null,null,"高槻駅前支店","タカツキエキマエ","527"]
[null,null,null,null,null,null,"高幡不動支店","タカハタフドウ","261"]
[null,null,null,null,null,null,"高松支店","タカマツ","674"]
[null,null,null,null,null,null,"宝塚支店","タカラヅカ","377"]
[null,null,null,null,null,null,"宝塚中山出張所","タカラヅカナカヤマ","735"]
[null,null,null,null,null,null,"立川支店","タチカワ","742"]
[null,null,null,null,null,null,"立花支店","タチバナ","536"]
[null,null,null,null,null,null,"田無支店","タナシ","851"]
[null,null,null,null,null,null,"多摩支店","タマ","688"]
[null,null,null,null,null,null,"多摩センター支店","タマセンタ－","909"]
[null,null,null,null,null,null,"田町相続オフィス","タマチソウゾク","775"]
[null,null,null,null,null,null,"玉造支店","タマツクリ","110"]
[null,null,null,null,null,null,"たまプラーザ支店","タマプラ－ザ","334"]
[null,null,null,null,null,null,"垂水支店","タルミ","371"]
[null,null,null,null,null,null,"たんぽぽ支店","タンポポ","978"]
[null,null,null,null,null,null,"茅ケ崎支店","チガサキ","781"]
[null,null,null,null,null,null,"千葉支店","チバ","066"]
[null,null,null,null,null,null,"千葉ニュータウン支店","チバニユ－タウン","081"]
[null,null,null,null,null,null,"中央支店","チユウオウ","763"]
[null,null,null,null,null,null,"調布駅前支店","チヨウフエキマエ","916"]
[null,null,null,null,null,null,"塚口支店","ツカグチ","420"]
[null,null,null,null,null,null,"築地支店","ツキジ","625"]
[null,null,null,null,null,null,"つきみ野支店","ツキミノ","191"]
[null,null,null,null,null,null,"つくば支店","ツクバ","244"]
[null,null,null,null,null,null,"津田沼駅前支店","ツダヌマエキマエ","891"]
[null,null,null,null,null,null,"つつじケ丘支店","ツツジガオカ","832"]
[null,null,null,null,null,null,"綱島支店","ツナシマ","329"]
[null,null,null,null,null,null,"ツバキ支店","ツバキ","879"]
[null,null,null,null,null,null,"鶴橋支店","ツルハシ","107"]
[null,null,null,null,null,null,"鶴見支店","ツルミ","572"]
[null,null,null,null,null,null,"東京ディズニーランド出張所","デイズニ－ランド","593"]
[null,null,null,null,null,null,"寺田町支店","テラダチヨウ","143"]
[null,null,null,null,null,null,"田園調布支店","デンエンチヨウフ","237"]
[null,null,null,null,null,null,"天下茶屋支店","テンガチヤヤ","448"]
[null,null,null,null,null,null,"天神町支店","テンジンチヨウ","717"]
[null,null,null,null,null,null,"天王寺駅前支店","テンノウジエキマエ","114"]
[null,null,null,null,null,null,"天白植田支店","テンパクウエダ","734"]
[null,null,null,null,null,null,"天満橋支店","テンマバシ","131"]
[null,null,null,null,null,null,"天六支店","テンロク","130"]
[null,null,null,null,null,null,"東海支店","トウカイ","730"]
[null,null,null,null,null,null,"東京営業部","トウキヨウ","211"]
[null,null,null,null,null,null,"東京公務部","トウキヨウコウムブ","096"]
[null,null,null,null,null,null,"東京第一支店","トウキヨウダイイチ","931"]
[null,null,null,null,null,null,"東京第二支店","トウキヨウダイニ","950"]
[null,null,null,null,null,null,"東京中央支店","トウキヨウチユウオウ","015"]
[null,null,null,null,null,null,"堂島支店","ドウジマ","518"]
[null,null,null,null,null,null,"ＡＴＭサービス東日本第一支店","トウショウ","607"]
[null,null,null,null,null,null,"ときわ台支店","トキワダイ","672"]
[null,null,null,null,null,null,"徳庵支店","トクアン","165"]
[null,null,null,null,null,null,"所沢支店","トコロザワ","345"]
[null,null,null,null,null,null,"戸塚支店","トツカ","791"]
[null,null,null,null,null,null,"ドットコム支店","ドツトコム","953"]
[null,null,null,null,null,null,"富山支店","トヤマ","501"]
[null,null,null,null,null,null,"豊岡支店","トヨオカ","470"]
[null,null,null,null,null,null,"豊田支店","トヨタ","487"]
[null,null,null,null,null,null,"トヨタビル出張所","トヨタビル","278"]
[null,null,null,null,null,null,"豊中支店","トヨナカ","154"]
[null,null,null,null,null,null,"豊橋支店","トヨハシ","404"]
[null,null,null,null,null,null,"都立大学駅前支店","トリツダイガクエキマエ","235"]
[null,null,null,null,null,null,"取手支店","トリデ","201"]
[null,null,null,null,null,null,"ドリーム出張所","ドリ－ム","776"]
[null,null,null,null,null,null,"富田林支店","トンダバヤシ","163"]
[null,null,null,null,null,null,"長田支店","ナガタ","400"]
[null,null,null,null,null,null,"中野支店","ナカノ","223"]
[null,null,null,null,null,null,"長野支店","ナガノ","008"]
[null,null,null,null,null,null,"中野坂上支店","ナカノサカウエ","814"]
[null,null,null,null,null,null,"中村橋支店","ナカムラバシ","249"]
[null,null,null,null,null,null,"中もず支店","ナカモズ","558"]
[null,null,null,null,null,null,"中山支店","ナカヤマ","867"]
[null,null,null,null,null,null,"永山支店","ナガヤマ","685"]
[null,null,null,null,null,null,"名古屋支店","ナゴヤ","481"]
[null,null,null,null,null,null,"名古屋駅前支店","ナゴヤエキマエ","402"]
[null,null,null,null,null,null,"名古屋栄支店","ナゴヤサカエ","408"]
[null,null,null,null,null,null,"灘支店","ナダ","302"]
[null,null,null,null,null,null,"なでしこ支店","ナデシコ","971"]
[null,null,null,null,null,null,"奈良支店","ナラ","541"]
[null,null,null,null,null,null,"習志野支店","ナラシノ","070"]
[null,null,null,null,null,null,"成田支店","ナリタ","548"]
[null,null,null,null,null,null,"成増支店","ナリマス","676"]
[null,null,null,null,null,null,"難波支店","ナンバ","111"]
[null,null,null,null,null,null,"新潟支店","ニイガタ","007"]
[null,null,null,null,null,null,"新座志木支店","ニイザシキ","349"]
[null,null,null,null,null,null,"新居浜支店","ニイハマ","603"]
[null,null,null,null,null,null,"西新井支店","ニシアライ","649"]
[null,null,null,null,null,null,"西荻窪支店","ニシオギクボ","082"]
[null,null,null,null,null,null,"西葛西支店","ニシカサイ","276"]
[null,null,null,null,null,null,"西田辺支店","ニシタナベ","450"]
[null,null,null,null,null,null,"西日本支店","ニシニホン","982"]
[null,null,null,null,null,null,"西野田支店","ニシノダ","119"]
[null,null,null,null,null,null,"西宮支店","ニシノミヤ","370"]
[null,null,null,null,null,null,"西宮北口支店","ニシノミヤキタグチ","375"]
[null,null,null,null,null,null,"西宮市役所出張所","ニシノミヤシヤクシヨ","370"]
[null,null,null,null,null,null,"西脇支店","ニシワキ","441"]
[null,null,null,null,null,null,"日興支店","ニツコウ","972"]
[null,null,null,null,null,null,"日暮里支店","ニツポリ","647"]
[null,null,null,null,null,null,"日本橋支店","ニホンバシ","695"]
[null,null,null,null,null,null,"日本橋東支店","ニホンバシヒガシ","034"]
[null,null,null,null,null,null,"人形町支店","ニンギヨウチヨウ","212"]
[null,null,null,null,null,null,"寝屋川支店","ネヤガワ","157"]
[null,null,null,null,null,null,"練馬支店","ネリマ","064"]
[null,null,null,null,null,null,"野並支店","ノナミ","737"]
[null,null,null,null,null,null,"白山支店","ハクサン","228"]
[null,null,null,null,null,null,"幡ケ谷支店","ハタガヤ","669"]
[null,null,null,null,null,null,"旗ノ台支店","ハタノダイ","099"]
[null,null,null,null,null,null,"八王子支店","ハチオウジ","843"]
[null,null,null,null,null,null,"花小金井支店","ハナコガネイ","627"]
[null,null,null,null,null,null,"はびきの出張所","ハビキノ","186"]
[null,null,null,null,null,null,"浜寺支店","ハマデラ","179"]
[null,null,null,null,null,null,"浜松支店","ハママツ","477"]
[null,null,null,null,null,null,"浜松町支店","ハママツチヨウ","679"]
[null,null,null,null,null,null,"はまゆう支店","ハマユウ","979"]
[null,null,null,null,null,null,"阪急曽根支店","ハンキユウソネ","759"]
[null,null,null,null,null,null,"東大阪支店","ヒガシオオサカ","151"]
[null,null,null,null,null,null,"東加古川支店","ヒガシカコガワ","432"]
[null,null,null,null,null,null,"東神奈川支店","ヒガシカナガワ","578"]
[null,null,null,null,null,null,"東戸塚支店","ヒガシトツカ","747"]
[null,null,null,null,null,null,"東豊中出張所","ヒガシトヨナカ","192"]
[null,null,null,null,null,null,"東日本支店","ヒガシニホン","925"]
[null,null,null,null,null,null,"東大和支店","ヒガシヤマト","852"]
[null,null,null,null,null,null,"東林間支店","ヒガシリンカン","858"]
[null,null,null,null,null,null,"光が丘支店","ヒカリガオカ","288"]
[null,null,null,null,null,null,"氷川台支店","ヒカワダイ","031"]
[null,null,null,null,null,null,"美章園支店","ビシヨウエン","115"]
[null,null,null,null,null,null,"ひなぎく支店","ヒナギク","762"]
[null,null,null,null,null,null,"日野支店","ヒノ","285"]
[null,null,null,null,null,null,"ひばりケ丘支店","ヒバリガオカ","564"]
[null,null,null,null,null,null,"日比谷支店","ヒビヤ","632"]
[null,null,null,null,null,null,"ひまわり支店","ヒマワリ","958"]
[null,null,null,null,null,null,"姫路支店","ヒメジ","451"]
[null,null,null,null,null,null,"姫路市役所出張所","ヒメジシヤクシヨ","461"]
[null,null,null,null,null,null,"姫路南支店","ヒメジミナミ","456"]
[null,null,null,null,null,null,"兵庫支店","ヒヨウゴ","320"]
[null,null,null,null,null,null,"兵庫県庁出張所","ヒヨウゴケンチヨウ","428"]
[null,null,null,null,null,null,"日吉支店","ヒヨシ","930"]
[null,null,null,null,null,null,"枚方支店","ヒラカタ","158"]
[null,null,null,null,null,null,"平塚支店","ヒラツカ","565"]
[null,null,null,null,null,null,"平野支店","ヒラノ","118"]
[null,null,null,null,null,null,"ヒルトップ支店","ヒルトツプ","986"]
[null,null,null,null,null,null,"広尾支店","ヒロオ","290"]
[null,null,null,null,null,null,"広島支店","ヒロシマ","605"]
[null,null,null,null,null,null,"広畑支店","ヒロハタ","457"]
[null,null,null,null,null,null,"備後町支店","ビンゴマチ","103"]
[null,null,null,null,null,null,"深江橋支店","フカエバシ","144"]
[null,null,null,null,null,null,"深川支店","フカガワ","804"]
[null,null,null,null,null,null,"福井支店","フクイ","502"]
[null,null,null,null,null,null,"福岡支店","フクオカ","701"]
[null,null,null,null,null,null,"福山支店","フクヤマ","955"]
[null,null,null,null,null,null,"藤井寺支店","フジイデラ","162"]
[null,null,null,null,null,null,"藤が丘支店","フジガオカ","705"]
[null,null,null,null,null,null,"藤沢支店","フジサワ","346"]
[null,null,null,null,null,null,"伏見支店","フシミ","513"]
[null,null,null,null,null,null,"ふじみ野支店","フジミノ","967"]
[null,null,null,null,null,null,"藤原台支店","フジワラダイ","396"]
[null,null,null,null,null,null,"二子玉川支店","フタコタマガワ","831"]
[null,null,null,null,null,null,"二俣川支店","フタマタガワ","568"]
[null,null,null,null,null,null,"府中支店","フチユウ","628"]
[null,null,null,null,null,null,"福生支店","フツサ","697"]
[null,null,null,null,null,null,"船橋支店","フナバシ","325"]
[null,null,null,null,null,null,"船橋北口支店","フナバシキタグチ","893"]
[null,null,null,null,null,null,"フラワータウン出張所","フラワ－タウン","394"]
[null,null,null,null,null,null,"プレスティア支店","プレステイア","707"]
[null,null,null,null,null,null,"ベイサイド支店","ベイサイド","948"]
[null,null,null,null,null,null,"平城支店","ヘイジヨウ","543"]
[null,null,null,null,null,null,"別府支店","ベフ","433"]
[null,null,null,null,null,null,"北条支店","ホウジヨウ","444"]
[null,null,null,null,null,null,"ホオズキ支店","ホオズキ","943"]
[null,null,null,null,null,null,"本店営業部","ホンテン","200"]
[null,null,null,null,null,null,"前橋支店","マエバシ","027"]
[null,null,null,null,null,null,"町田支店","マチダ","847"]
[null,null,null,null,null,null,"町田山崎出張所","マチダヤマザキ","190"]
[null,null,null,null,null,null,"町屋支店","マチヤ","648"]
[null,null,null,null,null,null,"松井山手出張所","マツイヤマテ","966"]
[null,null,null,null,null,null,"松戸支店","マツド","497"]
[null,null,null,null,null,null,"松原支店","マツバラ","170"]
[null,null,null,null,null,null,"松山支店","マツヤマ","740"]
[null,null,null,null,null,null,"丸ノ内支店","マルノウチ","245"]
[null,null,null,null,null,null,"御影支店","ミカゲ","308"]
[null,null,null,null,null,null,"三木支店","ミキ","438"]
[null,null,null,null,null,null,"溝ノ口支店","ミゾノクチ","596"]
[null,null,null,null,null,null,"三鷹支店","ミタカ","247"]
[null,null,null,null,null,null,"三田通支店","ミタドオリ","623"]
[null,null,null,null,null,null,"三井物産ビル支店","ミツイブツサンビル","696"]
[null,null,null,null,null,null,"三ツ境支店","ミツキヨウ","204"]
[null,null,null,null,null,null,"水戸支店","ミト","910"]
[null,null,null,null,null,null,"御堂筋支店","ミドウスジ","517"]
[null,null,null,null,null,null,"緑が丘支店","ミドリガオカ","442"]
[null,null,null,null,null,null,"港支店","ミナト","121"]
[null,null,null,null,null,null,"湊川支店","ミナトガワ","315"]
[null,null,null,null,null,null,"南千里支店","ミナミセンリ","189"]
[null,null,null,null,null,null,"南森町支店","ミナミモリマチ","129"]
[null,null,null,null,null,null,"箕面支店","ミノオ","185"]
[null,null,null,null,null,null,"箕面市役所出張所","ミノオシヤクシヨ","182"]
[null,null,null,null,null,null,"宮崎台支店","ミヤザキダイ","793"]
[null,null,null,null,null,null,"武庫之荘支店","ムコノソウ","424"]
[null,null,null,null,null,null,"武蔵浦和支店","ムサシウラワ","959"]
[null,null,null,null,null,null,"武蔵小杉支店","ムサシコスギ","929"]
[null,null,null,null,null,null,"武蔵境支店","ムサシサカイ","296"]
[null,null,null,null,null,null,"武蔵関支店","ムサシセキ","665"]
[null,null,null,null,null,null,"武蔵中原支店","ムサシナカハラ","353"]
[null,null,null,null,null,null,"目黒支店","メグロ","694"]
[null,null,null,null,null,null,"目白支店","メジロ","677"]
[null,null,null,null,null,null,"元住吉支店","モトスミヨシ","890"]
[null,null,null,null,null,null,"本山支店","モトヤマ","484"]
[null,null,null,null,null,null,"本八幡支店","モトヤワタ","077"]
[null,null,null,null,null,null,"守口支店","モリグチ","156"]
[null,null,null,null,null,null,"守口市駅前出張所","モリグチシエキマエ","197"]
[null,null,null,null,null,null,"守谷支店","モリヤ","936"]
[null,null,null,null,null,null,"八尾支店","ヤオ","161"]
[null,null,null,null,null,null,"矢向支店","ヤコウ","020"]
[null,null,null,null,null,null,"八事支店","ヤゴト","733"]
[null,null,null,null,null,null,"八千代支店","ヤチヨ","505"]
[null,null,null,null,null,null,"八千代緑が丘支店","ヤチヨミドリガオカ","965"]
[null,null,null,null,null,null,"やなぎ支店","ヤナギ","984"]
[null,null,null,null,null,null,"大和支店","ヤマト","347"]
[null,null,null,null,null,null,"大和王寺支店","ヤマトオウジ","772"]
[null,null,null,null,null,null,"大和郡山支店","ヤマトコオリヤマ","544"]
[null,null,null,null,null,null,"山本支店","ヤマモト","563"]
[null,null,null,null,null,null,"雪ケ谷支店","ユキガヤ","633"]
[null,null,null,null,null,null,"百合ケ丘出張所","ユリガオカ","352"]
[null,null,null,null,null,null,"横浜支店","ヨコハマ","588"]
[null,null,null,null,null,null,"横浜駅前支店","ヨコハマエキマエ","547"]
[null,null,null,null,null,null,"横浜中央支店","ヨコハマチユウオウ","321"]
[null,null,null,null,null,null,"四街道支店","ヨツカイドウ","078"]
[null,null,null,null,null,null,"ライラック支店","ライラツク","935"]
[null,null,null,null,null,null,"ラベンダー支店","ラベンダ－","976"]
[null,null,null,null,null,null,"緑園都市出張所","リヨクエントシ","298"]
[null,null,null,null,null,null,"りんどう支店","リンドウ","970"]
[null,null,null,null,null,null,"れんげ支店","レンゲ","939"]
[null,null,null,null,null,null,"六郷支店","ロクゴウ","808"]
[null,null,null,null,null,null,"六甲支店","ロツコウ","421"]
[null,null,null,null,null,null,"六甲アイランド支店","ロツコウアイランド","339"]
[null,null,null,null,null,null,"六本木支店","ロツポンギ","619"]
[null,null,null,null,null,null,"若江岩田支店","ワカエイワタ","160"]
[null,null,null,null,null,null,"若葉台支店","ワカバダイ","940"]
[null,null,null,null,null,null,"和歌山支店","ワカヤマ","542"]
[null,null,null,null,null,null,"わらび支店","ワラビ","586"]

{"sheet":"納税課用・修正シート","index":6,"n_rows":16,"n_cols":12,"rows_kept":16,"cut":false,"hidden":true,"merged":[[4,1,15,1],[4,2,15,2],[4,0,15,0]]}
["水色に塗りつぶされたセルのみ更新してください。"]
[]
["No.","項目","修正すべき内容","修正欄"]
[1,"振替（払込）希望税目","年度",6,"←今年度"]
[2,"申込受付締切","納税カレンダー","月","市・県民税\n(普通徴収分)","固定資産税\n都市計画税","軽自動車税","国民健康保険税\n（普通徴収分）","納期限\n(口座振替日)","用紙申込締切","ペイジー申込締切"]
[null,null,null,"4月",null,null,"全期",null,"2024-04-30","2024-03-29","2024-04-17","←以下、「納税カレンダー」から転記"]
[null,null,null,"5月",null,"全期\n（第１期）",null,null,"2024-05-31","2024-04-30","2024-05-21"]
[null,null,null,"6月","全期\n（第１期）",null,null,null,"2024-07-01","2024-05-31","2024-06-19"]
[null,null,null,"7月",null,"第２期",null,"全期\n（第１期）","2024-07-31","2024-06-28","2024-07-19"]
[null,null,null,"8月","第２期",null,null,"第２期","2024-09-02","2024-07-31","2024-08-21"]
[null,null,null,"9月",null,null,null,"第３期","2024-09-30","2024-08-30","2024-09-17"]
[null,null,null,"10月","第３期",null,null,"第４期","2024-10-31","2024-09-30","2024-10-21"]
[null,null,null,"11月",null,null,null,"第５期","2024-12-02","2024-10-31","2024-11-20"]
[null,null,null,"12月",null,"第３期",null,"第６期","2024-12-25","2024-11-25","2024-12-13"]
[null,null,null,"1月","第４期",null,null,"第７期","2025-01-31","2024-12-20","2025-01-21"]
[null,null,null,"2月",null,"第４期",null,"第８期","2025-02-28","2025-01-31","2025-02-17"]